BODY,BODY NAME,DATE,TRANSACTION NUMBER, AMOUNT ,SUPPLIER NAME,SUPPLIER ID,EXPENSE AREA,EXPENSE TYPE,EXPENSE CODE
http://statistics.data.gov.uk/id/local-authority/12UE,Huntingdonshire District Council,29/04/2010,57117,"2,800.00",Elephant & Castle Freehouse & Motel,CR401969,Accommodation For Homeless,Bed & Breakfast Payment,818
http://statistics.data.gov.uk/id/local-authority/12UE,Huntingdonshire District Council,22/04/2010,56582,"2,650.00",Elephant & Castle Freehouse & Motel,CR401969,Accommodation For Homeless,Bed & Breakfast Payment,818
http://statistics.data.gov.uk/id/local-authority/12UE,Huntingdonshire District Council,15/04/2010,56020,"3,150.00",Elephant & Castle Freehouse & Motel,CR401969,Accommodation For Homeless,Bed & Breakfast Payment,818
http://statistics.data.gov.uk/id/local-authority/12UE,Huntingdonshire District Council,08/04/2010,55490,"3,650.00",Elephant & Castle Freehouse & Motel,CR401969,Accommodation For Homeless,Bed & Breakfast Payment,818
http://statistics.data.gov.uk/id/local-authority/12UE,Huntingdonshire District Council,01/04/2010,55004,"3,600.00",Elephant & Castle Freehouse & Motel,CR401969,Accommodation For Homeless,Bed & Breakfast Payment,818
http://statistics.data.gov.uk/id/local-authority/12UE,Huntingdonshire District Council,15/04/2010,56038,"1,586.00",King Street Housing Society,CR409301,Accommodation For Homeless,Management Charge,733
http://statistics.data.gov.uk/id/local-authority/12UE,Huntingdonshire District Council,08/04/2010,54543,"1,163.95",Glasdon Uk Ltd,CR002827,Animal Welfare,Litter Bins,520
http://statistics.data.gov.uk/id/local-authority/12UE,Huntingdonshire District Council,29/04/2010,55341,"2,317.69",J Breheny Contractors Ltd,CR000314,Animal Welfare,Litter Bins,520
http://statistics.data.gov.uk/id/local-authority/12UE,Huntingdonshire District Council,08/04/2010,54929,951.76,Opus International Consultants,CR479831,Building Control Applications,Consultants Other,711
http://statistics.data.gov.uk/id/local-authority/12UE,Huntingdonshire District Council,08/04/2010,54929,69.51,Opus International Consultants,CR479831,Building Control Other,Consultants Other,711
http://statistics.data.gov.uk/id/local-authority/12UE,Huntingdonshire District Council,22/04/2010,491076,"1,370.05",North Kesteven District Council,CR477399,Building Control Other,Subcontractors,777
http://statistics.data.gov.uk/id/local-authority/12UE,Huntingdonshire District Council,22/04/2010,491074,581.63,North Kesteven District Council,CR477399,Building Control Other,Subcontractors,777
http://statistics.data.gov.uk/id/local-authority/12UE,Huntingdonshire District Council,22/04/2010,491073,827.2,North Kesteven District Council,CR477399,Building Control Other,Subcontractors,777
http://statistics.data.gov.uk/id/local-authority/12UE,Huntingdonshire District Council,15/04/2010,54798,"1,468.75",Blue Prawn Design & Marketing Limited,CR480062,Business & Enterprise Support,Artwork And Design,222
http://statistics.data.gov.uk/id/local-authority/12UE,Huntingdonshire District Council,15/04/2010,56153,"5,287.50",Ian White Associates (Navigation ) Ltd,CR480131,Business & Enterprise Support,Consultants Other,711
http://statistics.data.gov.uk/id/local-authority/12UE,Huntingdonshire District Council,29/04/2010,55375,600,Action For Market Towns,CR031464,Business & Enterprise Support,Corporate Subscriptions,754
http://statistics.data.gov.uk/id/local-authority/12UE,Huntingdonshire District Council,29/04/2010,55364,"5,000.00",Business Link East,CR480364,Business & Enterprise Support,Grants (Paid Out),800
http://statistics.data.gov.uk/id/local-authority/12UE,Huntingdonshire District Council,01/04/2010,53265,"2,141.00",Hard Hat Business Advice,CR480302,Business & Enterprise Support,Grants (Paid Out),800
http://statistics.data.gov.uk/id/local-authority/12UE,Huntingdonshire District Council,08/04/2010,53937,"6,000.00",Nwes Property Services Ltd,CR479264,Business & Enterprise Support,Grants (Paid Out),800
http://statistics.data.gov.uk/id/local-authority/12UE,Huntingdonshire District Council,01/04/2010,53255,"1,750.00",Nwes Property Services Ltd,CR479264,Business & Enterprise Support,Marketing - Admin,MJ14
http://statistics.data.gov.uk/id/local-authority/12UE,Huntingdonshire District Council,29/04/2010,55371,940,Ied Education Trsut Ltd,CR479762,Business & Enterprise Support,Training - Professional,130
http://statistics.data.gov.uk/id/local-authority/12UE,Huntingdonshire District Council,29/04/2010,55967,771.39,E-On Energy,CR416430,C C T V,Electricity,420
http://statistics.data.gov.uk/id/local-authority/12UE,Huntingdonshire District Council,08/04/2010,54242,940,Psk Installations,CR416540,C C T V Equipment Capital,Cctv Equipment,526
http://statistics.data.gov.uk/id/local-authority/12UE,Huntingdonshire District Council,01/04/2010,52886,"32,839.56",Cambridgeshire County Council,CR006678,Call Centre,I C T Services,731
http://statistics.data.gov.uk/id/local-authority/12UE,Huntingdonshire District Council,08/04/2010,54274,43.96,T N T Post Midlands Ltd,CR479965,Call Centre,Postage,231
http://statistics.data.gov.uk/id/local-authority/12UE,Huntingdonshire District Council,01/04/2010,52886,111.25,Cambridgeshire County Council,CR006678,Call Centre,Vending Materials,560
http://statistics.data.gov.uk/id/local-authority/12UE,Huntingdonshire District Council,29/04/2010,55462,561.33,Mhb Services,CR417269,Car Park Assets,Sitework,359
http://statistics.data.gov.uk/id/local-authority/12UE,Huntingdonshire District Council,29/04/2010,56033,"3,590.66",Cale Briparc Ltd,CR401137,Car Park Management,Car Park Machines,522
http://statistics.data.gov.uk/id/local-authority/12UE,Huntingdonshire District Council,29/04/2010,57073,"5,458.57",G4s Cashservices Uk Ltd,CR407133,Car Park Management,Cash Collection,702
http://statistics.data.gov.uk/id/local-authority/12UE,Huntingdonshire District Council,15/04/2010,54352,"5,458.57",G4s Cashservices Uk Ltd,CR407133,Car Park Management,Cash Collection,702
http://statistics.data.gov.uk/id/local-authority/12UE,Huntingdonshire District Council,22/04/2010,56546,608.48,Swalec,CR407130,Car Park Management,Electricity,420
http://statistics.data.gov.uk/id/local-authority/12UE,Huntingdonshire District Council,01/04/2010,54872,628.57,Swalec,CR407130,Car Park Management,Electricity,420
http://statistics.data.gov.uk/id/local-authority/12UE,Huntingdonshire District Council,01/04/2010,54868,644.96,Swalec,CR407130,Car Park Management,Electricity,420
http://statistics.data.gov.uk/id/local-authority/12UE,Huntingdonshire District Council,08/04/2010,54920,20.57,Elecheck (Est) Ltd,CR480242,Car Park Management,Gen Building Mtce - Planned,304
http://statistics.data.gov.uk/id/local-authority/12UE,Huntingdonshire District Council,22/04/2010,55844,923.35,Zurich Municipal,CR003638,Car Park Management,Insurance Excess,797
http://statistics.data.gov.uk/id/local-authority/12UE,Huntingdonshire District Council,22/04/2010,55360,592.2,Cale Briparc Ltd,CR401137,Car Park Management,Software,206
http://statistics.data.gov.uk/id/local-authority/12UE,Huntingdonshire District Council,01/04/2010,54300,"1,422.93",Bemrose Booth,CR407126,Car Park Management,Tickets,227
http://statistics.data.gov.uk/id/local-authority/12UE,Huntingdonshire District Council,08/04/2010,54357,"2,213.55",The Stationery Office,CR401989,Central & Democratic Serv Mu,Books & Publications,250
http://statistics.data.gov.uk/id/local-authority/12UE,Huntingdonshire District Council,29/04/2010,57089,"4,162.93",Locata Housing Services Ltd,CR478274,Choice Based Lettings (Ex Chr),Advertising/Promoting Services,255
http://statistics.data.gov.uk/id/local-authority/12UE,Huntingdonshire District Council,29/04/2010,57093,"4,616.07",Locata Housing Services Ltd,CR478274,Choice Based Lettings (Ex Chr),Software,206
http://statistics.data.gov.uk/id/local-authority/12UE,Huntingdonshire District Council,29/04/2010,55461,280,Moorside Pools & Leisure Products,CR411501,Community Projects,Building Cleaning Internal,440
http://statistics.data.gov.uk/id/local-authority/12UE,Huntingdonshire District Council,29/04/2010,55456,280,Moorside Pools & Leisure Products,CR411501,Community Projects,Building Cleaning Internal,440
http://statistics.data.gov.uk/id/local-authority/12UE,Huntingdonshire District Council,29/04/2010,56952,"2,160.00",Cambridgeshire County Council,CR017440,Community Projects,Grants (Paid Out),800
http://statistics.data.gov.uk/id/local-authority/12UE,Huntingdonshire District Council,22/04/2010,55464,"2,930.69",Alexander,CR479516,Community Projects,Training - Other,136
http://statistics.data.gov.uk/id/local-authority/12UE,Huntingdonshire District Council,22/04/2010,56413,280.97,Cambridge Water Plc,CR000172,Community Projects,Water,432
http://statistics.data.gov.uk/id/local-authority/12UE,Huntingdonshire District Council,22/04/2010,55903,541.84,Ultimate Finance Limited,CR480373,Community Safety,Hired Staff,100
http://statistics.data.gov.uk/id/local-authority/12UE,Huntingdonshire District Council,15/04/2010,55902,541.84,Ultimate Finance Limited,CR480373,Community Safety,Hired Staff,100
http://statistics.data.gov.uk/id/local-authority/12UE,Huntingdonshire District Council,22/04/2010,54826,"1,430.00",Sts Leisure Group,CR415607,Community Services M Us,Training - Operational,131
http://statistics.data.gov.uk/id/local-authority/12UE,Huntingdonshire District Council,01/04/2010,55103,996.75,Chartered Institute Of Marketing,CR413430,Community Services M Us,Training - Professional,130
http://statistics.data.gov.uk/id/local-authority/12UE,Huntingdonshire District Council,29/04/2010,56712,711.46,Payne Security Ltd,CR406896,Concessionary Fares,Tickets,227
http://statistics.data.gov.uk/id/local-authority/12UE,Huntingdonshire District Council,29/04/2010,491450,"2,000.00",REDACTED PERSONAL DATA,CR480431,Conservation & Listed Build,Grants (Paid Out),800
http://statistics.data.gov.uk/id/local-authority/12UE,Huntingdonshire District Council,22/04/2010,491104,"2,500.00",REDACTED PERSONAL DATA,CR480403,Conservation & Listed Build,Grants (Paid Out),800
http://statistics.data.gov.uk/id/local-authority/12UE,Huntingdonshire District Council,29/04/2010,491448,"10,000.00",REDACTED PERSONAL DATA,CR480445,Conservation & Listed Build,Grants (Paid Out),800
http://statistics.data.gov.uk/id/local-authority/12UE,Huntingdonshire District Council,22/04/2010,55323,625,Wayside & Wildlife,CR409567,Countryside Management,Hired Staff,100
http://statistics.data.gov.uk/id/local-authority/12UE,Huntingdonshire District Council,29/04/2010,56424,962.33,Farming Wildlife Advisory Group Ltd,CR406401,Countryside Management,Sitework,359
http://statistics.data.gov.uk/id/local-authority/12UE,Huntingdonshire District Council,29/04/2010,55408,"2,675.00",Butterfly Conservation,CR479170,Countryside Management,Subcontractors,777
http://statistics.data.gov.uk/id/local-authority/12UE,Huntingdonshire District Council,29/04/2010,55461,280,Moorside Pools & Leisure Products,CR411501,Customer Service,Building Cleaning Internal,440
http://statistics.data.gov.uk/id/local-authority/12UE,Huntingdonshire District Council,29/04/2010,55456,280,Moorside Pools & Leisure Products,CR411501,Customer Service,Building Cleaning Internal,440
http://statistics.data.gov.uk/id/local-authority/12UE,Huntingdonshire District Council,08/04/2010,55025,889.92,Swalec,CR407130,Customer Service,Electricity,420
http://statistics.data.gov.uk/id/local-authority/12UE,Huntingdonshire District Council,08/04/2010,54920,52.91,Elecheck (Est) Ltd,CR480242,Customer Service,Gen Building Mtce - Planned,304
http://statistics.data.gov.uk/id/local-authority/12UE,Huntingdonshire District Council,08/04/2010,53737,612.45,White Commercial Surveyors Ltd,CR412242,Customer Service,Gen Building Mtce - Responsive,303
http://statistics.data.gov.uk/id/local-authority/12UE,Huntingdonshire District Council,08/04/2010,54356,"3,299.78",St Neots Museum,CR400593,Customer Service,Rent,410
http://statistics.data.gov.uk/id/local-authority/12UE,Huntingdonshire District Council,22/04/2010,56413,280.97,Cambridge Water Plc,CR000172,Customer Service,Sewerage,433
http://statistics.data.gov.uk/id/local-authority/12UE,Huntingdonshire District Council,29/04/2010,57071,510.01,G4s Cashservices Uk Ltd,CR407133,Customer Service Centres,Cash Collection,702
http://statistics.data.gov.uk/id/local-authority/12UE,Huntingdonshire District Council,08/04/2010,54353,510.01,G4s Cashservices Uk Ltd,CR407133,Customer Service Centres,Cash Collection,702
http://statistics.data.gov.uk/id/local-authority/12UE,Huntingdonshire District Council,08/04/2010,54920,37.13,Elecheck (Est) Ltd,CR480242,Customer Service Centres,Gen Building Mtce - Planned,304
http://statistics.data.gov.uk/id/local-authority/12UE,Huntingdonshire District Council,29/04/2010,55770,"1,153.26",Dell Computer Corporation,CR408320,Customer Service Centres,Other I T Hardware,203
http://statistics.data.gov.uk/id/local-authority/12UE,Huntingdonshire District Council,22/04/2010,56679,522.33,Royal Mail Retail,CR001487,Customer Service Centres,Postage,231
http://statistics.data.gov.uk/id/local-authority/12UE,Huntingdonshire District Council,01/04/2010,53398,"8,247.57",Capita Business Services Ltd,CR410639,Customer Service Centres,Software,206
http://statistics.data.gov.uk/id/local-authority/12UE,Huntingdonshire District Council,01/04/2010,53395,"4,885.53",Capita Business Services Ltd,CR410639,Customer Service Centres,Software,206
http://statistics.data.gov.uk/id/local-authority/12UE,Huntingdonshire District Council,15/04/2010,54325,141,G Ferrara Ltd,CR478949,Cycling,Equipment Purchases,500
http://statistics.data.gov.uk/id/local-authority/12UE,Huntingdonshire District Council,29/04/2010,56515,114.92,Archant Herts & Cambs,CR415764,Dc Application Processing,Advertising - Statutory Notice,257
http://statistics.data.gov.uk/id/local-authority/12UE,Huntingdonshire District Council,15/04/2010,56142,"26,547.01",Capita Symonds,CR480278,Dc Application Processing,Consultants Other,711
http://statistics.data.gov.uk/id/local-authority/12UE,Huntingdonshire District Council,29/04/2010,56135,"5,875.00",Drivers  Jonas Deloitte,CR400573,Dc Application Processing,Consultants Other,711
http://statistics.data.gov.uk/id/local-authority/12UE,Huntingdonshire District Council,22/04/2010,54963,"17,397.01",Drivers  Jonas Deloitte,CR400573,Dc Application Processing,Consultants Other,711
http://statistics.data.gov.uk/id/local-authority/12UE,Huntingdonshire District Council,08/04/2010,54422,881.25,Reading Agricultural Consultants,CR404991,Dc Application Processing,Consultants Other,711
http://statistics.data.gov.uk/id/local-authority/12UE,Huntingdonshire District Council,22/04/2010,56406,"5,415.70",Swalec,CR407130,Depots,Electricity,420
http://statistics.data.gov.uk/id/local-authority/12UE,Huntingdonshire District Council,22/04/2010,55922,675.12,E-On Energy,CR416430,Depots,Gas,421
http://statistics.data.gov.uk/id/local-authority/12UE,Huntingdonshire District Council,15/04/2010,55424,"1,417.43",Ecocleen Services Limited,CR406985,Depots,Gen Building Mtce - Planned,304
http://statistics.data.gov.uk/id/local-authority/12UE,Huntingdonshire District Council,15/04/2010,55423,"1,474.12",Ecocleen Services Limited,CR406985,Depots,Gen Building Mtce - Planned,304
http://statistics.data.gov.uk/id/local-authority/12UE,Huntingdonshire District Council,08/04/2010,54920,26.92,Elecheck (Est) Ltd,CR480242,Depots,Gen Building Mtce - Planned,304
http://statistics.data.gov.uk/id/local-authority/12UE,Huntingdonshire District Council,01/04/2010,53305,"2,917.53",Anglia Electrical Services Ltd,CR477493,Depots,Gen Building Mtce - Responsive,303
http://statistics.data.gov.uk/id/local-authority/12UE,Huntingdonshire District Council,29/04/2010,55787,693.25,Dal-Rod (Camridgeshire),CR413675,Depots,Gen Building Mtce - Responsive,303
http://statistics.data.gov.uk/id/local-authority/12UE,Huntingdonshire District Council,29/04/2010,55815,"2,350.00",Secura Cam,CR411885,Depots,Gen Building Mtce - Responsive,303
http://statistics.data.gov.uk/id/local-authority/12UE,Huntingdonshire District Council,01/04/2010,53974,251.17,Phoenix Software Ltd,CR031918,Development Team,Software,206
http://statistics.data.gov.uk/id/local-authority/12UE,Huntingdonshire District Council,19/04/2010,491091,"9,740.77",Miss Saira Kabir Sheikh,CR409440,Dm Enforcement,Legal Fees And Consultancy,729
http://statistics.data.gov.uk/id/local-authority/12UE,Huntingdonshire District Council,22/04/2010,55823,"1,192.63",Dx Network Services Ltd,CR086545,Document Centre,Equipment Maintenance,511
http://statistics.data.gov.uk/id/local-authority/12UE,Huntingdonshire District Council,29/04/2010,490810,"3,093.30",Mick Cornfield,CR416841,Document Centre,Equipment Maintenance,511
http://statistics.data.gov.uk/id/local-authority/12UE,Huntingdonshire District Council,29/04/2010,490809,"2,530.88",Mick Cornfield,CR416841,Document Centre,Equipment Maintenance,511
http://statistics.data.gov.uk/id/local-authority/12UE,Huntingdonshire District Council,29/04/2010,56460,541.43,Oce Uk Limited,CR409013,Document Centre,Equipment Maintenance,511
http://statistics.data.gov.uk/id/local-authority/12UE,Huntingdonshire District Council,29/04/2010,55830,"7,593.31",Oce Uk Limited,CR409013,Document Centre,Equipment Maintenance,511
http://statistics.data.gov.uk/id/local-authority/12UE,Huntingdonshire District Council,29/04/2010,55829,"1,696.70",Oce Uk Limited,CR409013,Document Centre,Equipment Maintenance,511
http://statistics.data.gov.uk/id/local-authority/12UE,Huntingdonshire District Council,29/04/2010,55828,"1,406.37",Oce Uk Limited,CR409013,Document Centre,Equipment Maintenance,511
http://statistics.data.gov.uk/id/local-authority/12UE,Huntingdonshire District Council,01/04/2010,53256,"1,696.70",Oce Uk Limited,CR409013,Document Centre,Equipment Maintenance,511
http://statistics.data.gov.uk/id/local-authority/12UE,Huntingdonshire District Council,29/04/2010,56438,"4,695.30",Fingerprint,CR001165,Document Centre,Materials,550
http://statistics.data.gov.uk/id/local-authority/12UE,Huntingdonshire District Council,29/04/2010,55822,212.95,Royal Mail,CR027083,Document Centre,Postage,231
http://statistics.data.gov.uk/id/local-authority/12UE,Huntingdonshire District Council,15/04/2010,54839,"1,308.33",Royal Mail,CR027083,Document Centre,Postage,231
http://statistics.data.gov.uk/id/local-authority/12UE,Huntingdonshire District Council,01/04/2010,53726,"1,255.66",Royal Mail,CR027083,Document Centre,Postage,231
http://statistics.data.gov.uk/id/local-authority/12UE,Huntingdonshire District Council,22/04/2010,55825,638.47,T N T Post Midlands Ltd,CR479965,Document Centre,Postage,231
http://statistics.data.gov.uk/id/local-authority/12UE,Huntingdonshire District Council,15/04/2010,54910,"1,209.83",T N T Post Midlands Ltd,CR479965,Document Centre,Postage,231
http://statistics.data.gov.uk/id/local-authority/12UE,Huntingdonshire District Council,08/04/2010,54274,827.77,T N T Post Midlands Ltd,CR479965,Document Centre,Postage,231
http://statistics.data.gov.uk/id/local-authority/12UE,Huntingdonshire District Council,01/04/2010,53722,927.57,T N T Post Midlands Ltd,CR479965,Document Centre,Postage,231
http://statistics.data.gov.uk/id/local-authority/12UE,Huntingdonshire District Council,29/04/2010,55819,"1,266.65",Sudbury Print Group Ltd,CR024134,Document Centre,Subcontractors,777
http://statistics.data.gov.uk/id/local-authority/12UE,Huntingdonshire District Council,22/04/2010,55835,"1,971.18",West Country Paper,CR400581,Document Centre,Subcontractors,777
http://statistics.data.gov.uk/id/local-authority/12UE,Huntingdonshire District Council,22/04/2010,55074,951.5,Qubic Recruitment Solutions,CR416827,Domestic Refuse,Hired Staff,100
http://statistics.data.gov.uk/id/local-authority/12UE,Huntingdonshire District Council,15/04/2010,54490,"1,037.98",Qubic Recruitment Solutions,CR416827,Domestic Refuse,Hired Staff,100
http://statistics.data.gov.uk/id/local-authority/12UE,Huntingdonshire District Council,08/04/2010,53923,951.52,Qubic Recruitment Solutions,CR416827,Domestic Refuse,Hired Staff,100
http://statistics.data.gov.uk/id/local-authority/12UE,Huntingdonshire District Council,01/04/2010,53691,"1,107.39",Qubic Recruitment Solutions,CR416827,Domestic Refuse,Hired Staff,100
http://statistics.data.gov.uk/id/local-authority/12UE,Huntingdonshire District Council,22/04/2010,54944,"6,182.05",Gelpack Excelsior Limited,CR002966,Domestic Refuse,Refuse Sacks,552
http://statistics.data.gov.uk/id/local-authority/12UE,Huntingdonshire District Council,29/04/2010,57046,869.5,Magnum Tyres Ltd,CR479195,Domestic Refuse,Tyres,630
http://statistics.data.gov.uk/id/local-authority/12UE,Huntingdonshire District Council,15/04/2010,54493,643.9,G E Capital Tls Ltd,CR411508,Domestic Refuse,Vehicle Hire,607
http://statistics.data.gov.uk/id/local-authority/12UE,Huntingdonshire District Council,22/04/2010,491127,210,Post Office  Ltd,CR008902,Domestic Refuse,Vehicle Licence,609
http://statistics.data.gov.uk/id/local-authority/12UE,Huntingdonshire District Council,29/04/2010,56102,"1,236.11",Austins Plant Services Ltd,CR477914,Domestic Refuse,Vehicle Maintenance,619
http://statistics.data.gov.uk/id/local-authority/12UE,Huntingdonshire District Council,15/04/2010,56099,947.06,Austins Plant Services Ltd,CR477914,Domestic Refuse,Vehicle Maintenance,619
http://statistics.data.gov.uk/id/local-authority/12UE,Huntingdonshire District Council,08/04/2010,54232,628.63,Barton Petroleum,CR409205,Domestic Refuse,Vehicle Maintenance,619
http://statistics.data.gov.uk/id/local-authority/12UE,Huntingdonshire District Council,22/04/2010,55803,775.77,Dennis Eagle Ltd,CR000200,Domestic Refuse,Vehicle Maintenance,619
http://statistics.data.gov.uk/id/local-authority/12UE,Huntingdonshire District Council,15/04/2010,54429,721.36,Dennis Eagle Ltd,CR000200,Domestic Refuse,Vehicle Maintenance,619
http://statistics.data.gov.uk/id/local-authority/12UE,Huntingdonshire District Council,01/04/2010,54342,589.91,Dennis Eagle Ltd,CR000200,Domestic Refuse,Vehicle Maintenance,619
http://statistics.data.gov.uk/id/local-authority/12UE,Huntingdonshire District Council,01/04/2010,54336,981.3,Dennis Eagle Ltd,CR000200,Domestic Refuse,Vehicle Maintenance,619
http://statistics.data.gov.uk/id/local-authority/12UE,Huntingdonshire District Council,22/04/2010,54892,886.29,Dennis Eagle Ltd,CR000200,Domestic Refuse,Vehicle Parts,625
http://statistics.data.gov.uk/id/local-authority/12UE,Huntingdonshire District Council,22/04/2010,54891,506.91,Dennis Eagle Ltd,CR000200,Domestic Refuse,Vehicle Parts,625
http://statistics.data.gov.uk/id/local-authority/12UE,Huntingdonshire District Council,29/04/2010,55517,"1,222.00",Gaunt Motorcool Services,CR404418,Domestic Refuse,Vehicle Parts,625
http://statistics.data.gov.uk/id/local-authority/12UE,Huntingdonshire District Council,22/04/2010,54886,876.86,Terberg Matec Uk Ltd,CR402183,Domestic Refuse,Vehicle Parts,625
http://statistics.data.gov.uk/id/local-authority/12UE,Huntingdonshire District Council,01/04/2010,53804,589.04,Terberg Matec Uk Ltd,CR402183,Domestic Refuse,Vehicle Parts,625
http://statistics.data.gov.uk/id/local-authority/12UE,Huntingdonshire District Council,22/04/2010,56172,"2,704.85",Ihs (Global)  Limited,CR416521,Eh Health & Safety,Books & Publications,250
http://statistics.data.gov.uk/id/local-authority/12UE,Huntingdonshire District Council,15/04/2010,54910,427.7,T N T Post Midlands Ltd,CR479965,Eh Health & Safety,Postage,231
http://statistics.data.gov.uk/id/local-authority/12UE,Huntingdonshire District Council,22/04/2010,54990,564.53,Shaw & Sons Limited,CR003422,Elections,Stationery,225
http://statistics.data.gov.uk/id/local-authority/12UE,Huntingdonshire District Council,01/04/2010,54828,"7,064.53",Computershare Vouchers Ltd,CR412205,Employee Loan Debtors,Deductions Paid To Third Party,26
http://statistics.data.gov.uk/id/local-authority/12UE,Huntingdonshire District Council,22/04/2010,54361,587.5,Marney Hall Consultancy Limited,CR480342,Energy Efficiency,Consultants Other,711
http://statistics.data.gov.uk/id/local-authority/12UE,Huntingdonshire District Council,01/04/2010,54547,"9,998.00",Renewables East,CR416925,Energy Efficiency,Consultants Other,711
http://statistics.data.gov.uk/id/local-authority/12UE,Huntingdonshire District Council,15/04/2010,54910,126.31,T N T Post Midlands Ltd,CR479965,Energy Efficiency,Postage,231
http://statistics.data.gov.uk/id/local-authority/12UE,Huntingdonshire District Council,01/04/2010,53974,"1,433.97",Phoenix Software Ltd,CR031918,Engineering & Arch M Us,Software,206
http://statistics.data.gov.uk/id/local-authority/12UE,Huntingdonshire District Council,22/04/2010,490674,"1,000.00",Cambridge & District Comm Mediation Service,CR032901,Environmental Health M Us,Corporate Subscriptions,754
http://statistics.data.gov.uk/id/local-authority/12UE,Huntingdonshire District Council,01/04/2010,53296,"1,227.87",Vg Training Services,CR416133,Environmental Health M Us,Hired Staff,100
http://statistics.data.gov.uk/id/local-authority/12UE,Huntingdonshire District Council,13/04/2010,55096,"9,680.00",Bearings Structural Repairs Limited,CR480193,Environmental Improvements,Sitework,359
http://statistics.data.gov.uk/id/local-authority/12UE,Huntingdonshire District Council,01/04/2010,53490,794.34,J Breheny Contractors Ltd,CR000314,Environmental Imps Mgt,Sitework,359
http://statistics.data.gov.uk/id/local-authority/12UE,Huntingdonshire District Council,29/04/2010,56170,"6,732.54",Drivers  Jonas Deloitte,CR400573,Estates Properties Capital,Consultants Other,711
http://statistics.data.gov.uk/id/local-authority/12UE,Huntingdonshire District Council,29/04/2010,56141,"4,911.77",Drivers  Jonas Deloitte,CR400573,Estates Properties Capital,Consultants Other,711
http://statistics.data.gov.uk/id/local-authority/12UE,Huntingdonshire District Council,23/04/2010,491402,"39,127.50",National Grid Plc,CR480413,Estates Properties Capital,Sitework,359
http://statistics.data.gov.uk/id/local-authority/12UE,Huntingdonshire District Council,01/04/2010,54277,944.7,Audit Commision,CR000237,External Audit,Audit Fees,701
http://statistics.data.gov.uk/id/local-authority/12UE,Huntingdonshire District Council,22/04/2010,54919,"31,117.53",Grant Thornton Uk Llp,CR400653,External Audit,Audit Fees,701
http://statistics.data.gov.uk/id/local-authority/12UE,Huntingdonshire District Council,08/04/2010,55344,"13,907.23",Acebench Limited,CR405428,Financial Services,Consultants Other,711
http://statistics.data.gov.uk/id/local-authority/12UE,Huntingdonshire District Council,08/04/2010,54827,"6,403.75",Jardine Lloyd Thompson,CR480345,Financial Services,Consultants Other,711
http://statistics.data.gov.uk/id/local-authority/12UE,Huntingdonshire District Council,22/04/2010,55427,"4,988.08",Kennedys,CR478788,Financial Services,Insurance Public Liability,160
http://statistics.data.gov.uk/id/local-authority/12UE,Huntingdonshire District Council,22/04/2010,55368,"4,230.00",Deloitte,CR416667,Financial Services Mus,Computer Audit,778
http://statistics.data.gov.uk/id/local-authority/12UE,Huntingdonshire District Council,22/04/2010,56672,"1,821.25",Lavat,CR480410,Financial Services Mus,Consultants Other,711
http://statistics.data.gov.uk/id/local-authority/12UE,Huntingdonshire District Council,29/04/2010,55890,851.41,Quo Vadis Consultancy Limited,CR030425,Financial Services Mus,Consultants Other,711
http://statistics.data.gov.uk/id/local-authority/12UE,Huntingdonshire District Council,29/04/2010,55881,"2,938.18",Storafile Imaging Ltd,CR024705,Financial Services Mus,Microfilming & Scanning,230
http://statistics.data.gov.uk/id/local-authority/12UE,Huntingdonshire District Council,01/04/2010,53291,"1,762.50",Rsm Tenon Limited,CR480303,Financial Services Mus,Software,206
http://statistics.data.gov.uk/id/local-authority/12UE,Huntingdonshire District Council,22/04/2010,55887,"4,465.00",Cipfa Business Limited,CR480088,Financial Services Mus,Training - Professional,130
http://statistics.data.gov.uk/id/local-authority/12UE,Huntingdonshire District Council,29/04/2010,55504,"1,874.13",Lattenbury Services,CR406847,Grounds Maintenance (Combined),"Fences, Walls, Gates",356
http://statistics.data.gov.uk/id/local-authority/12UE,Huntingdonshire District Council,22/04/2010,55336,819.56,Berrycroft Stores Ltd,CR000298,Grounds Maintenance (Combined),"Fertilizer,Compost,Bark",557
http://statistics.data.gov.uk/id/local-authority/12UE,Huntingdonshire District Council,22/04/2010,55336,74.03,Berrycroft Stores Ltd,CR000298,Grounds Maintenance (Combined),Materials,550
http://statistics.data.gov.uk/id/local-authority/12UE,Huntingdonshire District Council,22/04/2010,56561,615.92,Landmark Trading,CR411433,Grounds Maintenance (Combined),Protective Clothing & Uniforms,163
http://statistics.data.gov.uk/id/local-authority/12UE,Huntingdonshire District Council,01/04/2010,54496,817.5,Mg Training,CR480224,Grounds Maintenance (Combined),Training - Operational,131
http://statistics.data.gov.uk/id/local-authority/12UE,Huntingdonshire District Council,22/04/2010,54966,"2,943.37",Nomix Enviro,CR002353,Grounds Maintenance (Combined),Training - Operational,131
http://statistics.data.gov.uk/id/local-authority/12UE,Huntingdonshire District Council,15/04/2010,56098,"1,369.24",Austins Plant Services Ltd,CR477914,Grounds Maintenance (Combined),Vehicle Maintenance,619
http://statistics.data.gov.uk/id/local-authority/12UE,Huntingdonshire District Council,29/04/2010,56963,782.57,Marshall Motor Group,CR009641,Grounds Maintenance (Combined),Vehicle Maintenance,619
http://statistics.data.gov.uk/id/local-authority/12UE,Huntingdonshire District Council,29/04/2010,55545,"1,480.50",Huntingdon Recycling Ltd,CR408322,Grounds Maintenance (Combined),Waste Disposal,763
http://statistics.data.gov.uk/id/local-authority/12UE,Huntingdonshire District Council,22/04/2010,56017,"2,214.88",Proactive Learning,CR478209,Head Of Imd,Other I T Hardware,203
http://statistics.data.gov.uk/id/local-authority/12UE,Huntingdonshire District Council,15/04/2010,54462,211.38,Comtec,CR480140,Head Of Imd,Training - I T,134
http://statistics.data.gov.uk/id/local-authority/12UE,Huntingdonshire District Council,29/04/2010,57152,"2,350.00",Systems & Networking Traininig Ltd,CR480155,Head Of Imd,Training - I T,134
http://statistics.data.gov.uk/id/local-authority/12UE,Huntingdonshire District Council,08/04/2010,53975,"2,937.50",Thirdforce,CR479517,Head Of Imd,Training - I T,134
http://statistics.data.gov.uk/id/local-authority/12UE,Huntingdonshire District Council,08/04/2010,54373,692.92,Health Edco,CR480148,Health Promotion,Equipment Purchases,500
http://statistics.data.gov.uk/id/local-authority/12UE,Huntingdonshire District Council,15/04/2010,54250,616.88,Phoenix Corporate Gifts,CR480165,Health Promotion,Promotions And Exhibitions,743
http://statistics.data.gov.uk/id/local-authority/12UE,Huntingdonshire District Council,01/04/2010,53981,734.38,Communications Management Association,CR480261,Helpdesk,Corporate Subscriptions,754
http://statistics.data.gov.uk/id/local-authority/12UE,Huntingdonshire District Council,29/04/2010,56023,521.7,1st Choice Recruitment,CR406132,Helpdesk,Hired Staff,100
http://statistics.data.gov.uk/id/local-authority/12UE,Huntingdonshire District Council,29/04/2010,56021,687.37,1st Choice Recruitment,CR406132,Helpdesk,Hired Staff,100
http://statistics.data.gov.uk/id/local-authority/12UE,Huntingdonshire District Council,22/04/2010,54940,521.7,1st Choice Recruitment,CR406132,Helpdesk,Hired Staff,100
http://statistics.data.gov.uk/id/local-authority/12UE,Huntingdonshire District Council,22/04/2010,54846,696.18,1st Choice Recruitment,CR406132,Helpdesk,Hired Staff,100
http://statistics.data.gov.uk/id/local-authority/12UE,Huntingdonshire District Council,08/04/2010,54399,521.7,1st Choice Recruitment,CR406132,Helpdesk,Hired Staff,100
http://statistics.data.gov.uk/id/local-authority/12UE,Huntingdonshire District Council,08/04/2010,54394,684.37,1st Choice Recruitment,CR406132,Helpdesk,Hired Staff,100
http://statistics.data.gov.uk/id/local-authority/12UE,Huntingdonshire District Council,15/04/2010,54393,521.7,1st Choice Recruitment,CR406132,Helpdesk,Hired Staff,100
http://statistics.data.gov.uk/id/local-authority/12UE,Huntingdonshire District Council,15/04/2010,54392,672.57,1st Choice Recruitment,CR406132,Helpdesk,Hired Staff,100
http://statistics.data.gov.uk/id/local-authority/12UE,Huntingdonshire District Council,01/04/2010,53412,521.7,1st Choice Recruitment,CR406132,Helpdesk,Hired Staff,100
http://statistics.data.gov.uk/id/local-authority/12UE,Huntingdonshire District Council,01/04/2010,53380,605.96,Jamy Ltd,CR000014,Helpdesk,Protective Clothing & Uniforms,163
http://statistics.data.gov.uk/id/local-authority/12UE,Huntingdonshire District Council,15/04/2010,54901,"88,254.72",Phoenix Software Ltd,CR031918,Helpdesk,Software,206
http://statistics.data.gov.uk/id/local-authority/12UE,Huntingdonshire District Council,01/04/2010,54855,"1,217.33",Swalec,CR407130,Hinchingbrooke Country Park,Electricity,420
http://statistics.data.gov.uk/id/local-authority/12UE,Huntingdonshire District Council,01/04/2010,54854,"1,288.30",Swalec,CR407130,Hinchingbrooke Country Park,Electricity,420
http://statistics.data.gov.uk/id/local-authority/12UE,Huntingdonshire District Council,22/04/2010,56037,944.7,Luminus Homes,CR401276,Homeless Prevention,Gen Building Mtce - Responsive,303
http://statistics.data.gov.uk/id/local-authority/12UE,Huntingdonshire District Council,08/04/2010,54810,"3,525.00",Intelligence Led Solutions Limited,CR479499,Housing  Benefits Admin,Software,206
http://statistics.data.gov.uk/id/local-authority/12UE,Huntingdonshire District Council,01/04/2010,55080,"1,289.47",Badenoch And Clark,CR410510,Housing Management Units,Hired Staff,100
http://statistics.data.gov.uk/id/local-authority/12UE,Huntingdonshire District Council,01/04/2010,55001,"1,289.47",Badenoch And Clark,CR410510,Housing Management Units,Hired Staff,100
http://statistics.data.gov.uk/id/local-authority/12UE,Huntingdonshire District Council,22/04/2010,56040,"1,411.76",Hqn Ltd,CR026133,Housing Management Units,Training - Operational,131
http://statistics.data.gov.uk/id/local-authority/12UE,Huntingdonshire District Council,22/04/2010,56402,561.95,Swalec,CR407130,Housing Services Other,Electricity,420
http://statistics.data.gov.uk/id/local-authority/12UE,Huntingdonshire District Council,15/04/2010,56077,"5,709.62",Luminus Homes,CR401276,Housing Services Other,Management Charge,733
http://statistics.data.gov.uk/id/local-authority/12UE,Huntingdonshire District Council,22/04/2010,56111,531.86,Cintra Ltd,CR028441,Housing Services Other,Translation Services,766
http://statistics.data.gov.uk/id/local-authority/12UE,Huntingdonshire District Council,22/04/2010,56172,"1,352.43",Ihs (Global)  Limited,CR416521,Human Resources,Books & Publications,250
http://statistics.data.gov.uk/id/local-authority/12UE,Huntingdonshire District Council,19/04/2010,491090,538.21,Sharpe Pritchard,CR400240,Human Resources,Legal Fees And Consultancy,729
http://statistics.data.gov.uk/id/local-authority/12UE,Huntingdonshire District Council,22/04/2010,55068,"5,752.62",Hinchingbrooke Healthcare Nhs,CR003003,Human Resources,Medical Fees,734
http://statistics.data.gov.uk/id/local-authority/12UE,Huntingdonshire District Council,15/04/2010,54536,"4,112.50",Learningpool,CR478445,Human Resources,Professional Subscriptions,755
http://statistics.data.gov.uk/id/local-authority/12UE,Huntingdonshire District Council,01/04/2010,54511,"2,314.75",West Anglia Training Assoc.Ltd,CR025035,Human Resources,Training - Health & Safety,133
http://statistics.data.gov.uk/id/local-authority/12UE,Huntingdonshire District Council,29/04/2010,56145,569.88,Connections Oxford,CR479713,Human Resources,Training - Management,132
http://statistics.data.gov.uk/id/local-authority/12UE,Huntingdonshire District Council,22/04/2010,55058,"6,932.50",Connections Oxford,CR479713,Human Resources,Training - Management,132
http://statistics.data.gov.uk/id/local-authority/12UE,Huntingdonshire District Council,29/04/2010,55065,806.99,Crystal Leaning And Development Ltd,CR416713,Human Resources,Training - Management,132
http://statistics.data.gov.uk/id/local-authority/12UE,Huntingdonshire District Council,22/04/2010,55067,"3,541.00",Norman & Nicholson,CR415685,Human Resources,Training - Management,132
http://statistics.data.gov.uk/id/local-authority/12UE,Huntingdonshire District Council,22/04/2010,55066,834.25,Northgate Hr Limited,CR416464,Human Resources,Training - Management,132
http://statistics.data.gov.uk/id/local-authority/12UE,Huntingdonshire District Council,29/04/2010,55906,"2,707.91",Konica Minolta,CR478866,I T Capital,Materials,550
http://statistics.data.gov.uk/id/local-authority/12UE,Huntingdonshire District Council,01/04/2010,51665,561.75,Kershaw Contracting Services,CR001026,Improvement Grants,Building Construction,300
http://statistics.data.gov.uk/id/local-authority/12UE,Huntingdonshire District Council,15/04/2010,56149,678.3,Mark Group,CR477835,Improvement Grants,Building Construction,300
http://statistics.data.gov.uk/id/local-authority/12UE,Huntingdonshire District Council,01/04/2010,55081,"4,926.25",St Neots Window & Conservatories,CR032419,Improvement Grants,Discretionary Grants,802
http://statistics.data.gov.uk/id/local-authority/12UE,Huntingdonshire District Council,15/04/2010,56059,334,A & S Fenner,CR000092,Improvement Grants,Home Improvement Agency Fees,724
http://statistics.data.gov.uk/id/local-authority/12UE,Huntingdonshire District Council,15/04/2010,56047,296,A & S Fenner,CR000092,Improvement Grants,Home Improvement Agency Fees,724
http://statistics.data.gov.uk/id/local-authority/12UE,Huntingdonshire District Council,15/04/2010,56045,280,A & S Fenner,CR000092,Improvement Grants,Home Improvement Agency Fees,724
http://statistics.data.gov.uk/id/local-authority/12UE,Huntingdonshire District Council,01/04/2010,54501,352.7,A & S Fenner,CR000092,Improvement Grants,Home Improvement Agency Fees,724
http://statistics.data.gov.uk/id/local-authority/12UE,Huntingdonshire District Council,15/04/2010,56046,362,B P Morse,CR030128,Improvement Grants,Home Improvement Agency Fees,724
http://statistics.data.gov.uk/id/local-authority/12UE,Huntingdonshire District Council,22/04/2010,56042,380,B P Morse,CR030128,Improvement Grants,Home Improvement Agency Fees,724
http://statistics.data.gov.uk/id/local-authority/12UE,Huntingdonshire District Council,01/04/2010,54387,101.5,Bsg Property Services Ltd,CR089905,Improvement Grants,Home Improvement Agency Fees,724
http://statistics.data.gov.uk/id/local-authority/12UE,Huntingdonshire District Council,22/04/2010,56071,"1,172.90",Felgains Care & Mobility,CR411475,Improvement Grants,Home Improvement Agency Fees,724
http://statistics.data.gov.uk/id/local-authority/12UE,Huntingdonshire District Council,15/04/2010,56044,100,Princebuild Ltd,CR000645,Improvement Grants,Home Improvement Agency Fees,724
http://statistics.data.gov.uk/id/local-authority/12UE,Huntingdonshire District Council,01/04/2010,55081,415,St Neots Window & Conservatories,CR032419,Improvement Grants,Home Improvement Agency Fees,724
http://statistics.data.gov.uk/id/local-authority/12UE,Huntingdonshire District Council,15/04/2010,56059,"3,340.00",A & S Fenner,CR000092,Improvement Grants,Mandatory Grants,801
http://statistics.data.gov.uk/id/local-authority/12UE,Huntingdonshire District Council,15/04/2010,56047,"2,960.00",A & S Fenner,CR000092,Improvement Grants,Mandatory Grants,801
http://statistics.data.gov.uk/id/local-authority/12UE,Huntingdonshire District Council,15/04/2010,56045,"2,800.00",A & S Fenner,CR000092,Improvement Grants,Mandatory Grants,801
http://statistics.data.gov.uk/id/local-authority/12UE,Huntingdonshire District Council,01/04/2010,54501,"3,527.00",A & S Fenner,CR000092,Improvement Grants,Mandatory Grants,801
http://statistics.data.gov.uk/id/local-authority/12UE,Huntingdonshire District Council,22/04/2010,490921,"7,860.00",Alan Smith Builders Ltd,CR480392,Improvement Grants,Mandatory Grants,801
http://statistics.data.gov.uk/id/local-authority/12UE,Huntingdonshire District Council,15/04/2010,56046,"3,620.00",B P Morse,CR030128,Improvement Grants,Mandatory Grants,801
http://statistics.data.gov.uk/id/local-authority/12UE,Huntingdonshire District Council,22/04/2010,56042,"3,800.00",B P Morse,CR030128,Improvement Grants,Mandatory Grants,801
http://statistics.data.gov.uk/id/local-authority/12UE,Huntingdonshire District Council,15/04/2010,56156,"3,827.73",Bsg Property Services Ltd,CR089905,Improvement Grants,Mandatory Grants,801
http://statistics.data.gov.uk/id/local-authority/12UE,Huntingdonshire District Council,01/04/2010,54387,"1,015.00",Bsg Property Services Ltd,CR089905,Improvement Grants,Mandatory Grants,801
http://statistics.data.gov.uk/id/local-authority/12UE,Huntingdonshire District Council,22/04/2010,56071,"11,729.00",Felgains Care & Mobility,CR411475,Improvement Grants,Mandatory Grants,801
http://statistics.data.gov.uk/id/local-authority/12UE,Huntingdonshire District Council,15/04/2010,56054,"5,024.00",Freelift Ltd,CR411611,Improvement Grants,Mandatory Grants,801
http://statistics.data.gov.uk/id/local-authority/12UE,Huntingdonshire District Council,08/04/2010,55083,622.75,Gawn Associates,CR477552,Improvement Grants,Mandatory Grants,801
http://statistics.data.gov.uk/id/local-authority/12UE,Huntingdonshire District Council,15/04/2010,56044,839.41,Princebuild Ltd,CR000645,Improvement Grants,Mandatory Grants,801
http://statistics.data.gov.uk/id/local-authority/12UE,Huntingdonshire District Council,15/04/2010,55486,"4,823.06",Swain Plastering & Building Contractors,CR477798,Improvement Grants,Mandatory Grants,801
http://statistics.data.gov.uk/id/local-authority/12UE,Huntingdonshire District Council,01/04/2010,55082,"7,378.68",Swain Plastering & Building Contractors,CR477798,Improvement Grants,Mandatory Grants,801
http://statistics.data.gov.uk/id/local-authority/12UE,Huntingdonshire District Council,01/04/2010,54385,"4,154.25",Swain Plastering & Building Contractors,CR477798,Improvement Grants,Mandatory Grants,801
http://statistics.data.gov.uk/id/local-authority/12UE,Huntingdonshire District Council,22/04/2010,56694,"82,551.94",Graham,CR480029,Industrial Properties Capital,Building Construction,300
http://statistics.data.gov.uk/id/local-authority/12UE,Huntingdonshire District Council,22/04/2010,56079,"1,175.00",Jba Construction & Management Services,CR416716,Industrial Properties Capital,Consultants Other,711
http://statistics.data.gov.uk/id/local-authority/12UE,Huntingdonshire District Council,29/04/2010,57184,652.78,Zef (Uk) Ltd,CR478573,Industrial Properties Capital,Consultants Other,711
http://statistics.data.gov.uk/id/local-authority/12UE,Huntingdonshire District Council,29/04/2010,55764,"11,301.99",Ordnance Survey,CR000600,Information Manager,Ordnance Survey Licence,735
http://statistics.data.gov.uk/id/local-authority/12UE,Huntingdonshire District Council,22/04/2010,56687,587.5,Idox Information Services Ltd,CR403657,Information Manager,Software,206
http://statistics.data.gov.uk/id/local-authority/12UE,Huntingdonshire District Council,29/04/2010,55763,528.75,Idox Information Services Ltd,CR403657,Information Manager,Software,206
http://statistics.data.gov.uk/id/local-authority/12UE,Huntingdonshire District Council,15/04/2010,56157,580,Town & Country Planning Association,CR410138,Internal Services Holding,Corporate Subscriptions,754
http://statistics.data.gov.uk/id/local-authority/12UE,Huntingdonshire District Council,08/04/2010,55411,"6,268.63",Agripa Solutions Limited,CR416753,Kerbside Recycling,Advertising/Promoting Services,255
http://statistics.data.gov.uk/id/local-authority/12UE,Huntingdonshire District Council,15/04/2010,54965,"4,718.80",Swan Print,CR413699,Kerbside Recycling,Advertising/Promoting Services,255
http://statistics.data.gov.uk/id/local-authority/12UE,Huntingdonshire District Council,22/04/2010,55076,"1,188.03",Qubic Recruitment Solutions,CR416827,Kerbside Recycling,Hired Staff,100
http://statistics.data.gov.uk/id/local-authority/12UE,Huntingdonshire District Council,15/04/2010,54487,554.32,Qubic Recruitment Solutions,CR416827,Kerbside Recycling,Hired Staff,100
http://statistics.data.gov.uk/id/local-authority/12UE,Huntingdonshire District Council,08/04/2010,53924,"1,107.40",Qubic Recruitment Solutions,CR416827,Kerbside Recycling,Hired Staff,100
http://statistics.data.gov.uk/id/local-authority/12UE,Huntingdonshire District Council,01/04/2010,53690,779.47,Qubic Recruitment Solutions,CR416827,Kerbside Recycling,Hired Staff,100
http://statistics.data.gov.uk/id/local-authority/12UE,Huntingdonshire District Council,22/04/2010,54944,"5,029.75",Gelpack Excelsior Limited,CR002966,Kerbside Recycling,Refuse Sacks,552
http://statistics.data.gov.uk/id/local-authority/12UE,Huntingdonshire District Council,15/04/2010,54415,"2,820.00",Practical Law Company Ltd,CR480337,Legal Services Managment Units,Books & Publications,250
http://statistics.data.gov.uk/id/local-authority/12UE,Huntingdonshire District Council,22/04/2010,56693,"7,367.25",Cambridge Flat Roofing,CR479717,Leisure Centres Capital,Building Construction,300
http://statistics.data.gov.uk/id/local-authority/12UE,Huntingdonshire District Council,22/04/2010,56656,"29,025.91",Cambridge Flat Roofing,CR479717,Leisure Centres Capital,Building Construction,300
http://statistics.data.gov.uk/id/local-authority/12UE,Huntingdonshire District Council,22/04/2010,56695,"1,032.40",Charles Lawrence Surfaces Plc,CR409026,Leisure Centres Capital,Building Construction,300
http://statistics.data.gov.uk/id/local-authority/12UE,Huntingdonshire District Council,15/04/2010,54953,"2,511.56",Charles Lawrence Surfaces Plc,CR409026,Leisure Centres Capital,Building Construction,300
http://statistics.data.gov.uk/id/local-authority/12UE,Huntingdonshire District Council,08/04/2010,55450,"9,400.00",Building Services Design - Bsd,CR409263,Leisure Centres Capital,Consultants Other,711
http://statistics.data.gov.uk/id/local-authority/12UE,Huntingdonshire District Council,08/04/2010,55386,916.52,Jba Construction & Management Services,CR416716,Leisure Centres Capital,Consultants Other,711
http://statistics.data.gov.uk/id/local-authority/12UE,Huntingdonshire District Council,01/04/2010,55137,"5,139.08",The Softbrick Company Ltd,CR480234,Leisure Centres Capital,Equipment Purchases,500
http://statistics.data.gov.uk/id/local-authority/12UE,Huntingdonshire District Council,01/04/2010,55134,"30,834.60",The Softbrick Company Ltd,CR480234,Leisure Centres Capital,Equipment Purchases,500
http://statistics.data.gov.uk/id/local-authority/12UE,Huntingdonshire District Council,15/04/2010,54816,555.74,Mcintyre Leisure,CR404059,Leisure Centres Capital,Gen Building Mtce - Planned,304
http://statistics.data.gov.uk/id/local-authority/12UE,Huntingdonshire District Council,22/04/2010,56168,"4,116.42",R G Carter Peterborough,CR401511,Leisure Centres Capital,Gen Building Mtce - Planned,304
http://statistics.data.gov.uk/id/local-authority/12UE,Huntingdonshire District Council,22/04/2010,56628,"7,490.99",Hytrac Lifts Ltd,CR030618,Leisure Centres Capital,Plant & Equipment Maintenance,380
http://statistics.data.gov.uk/id/local-authority/12UE,Huntingdonshire District Council,08/04/2010,54831,634.5,Mhb Services,CR417269,Leisure Centres Capital,Sitework,359
http://statistics.data.gov.uk/id/local-authority/12UE,Huntingdonshire District Council,22/04/2010,56075,763.75,Cambridge Newspapers Ltd,CR410062,Leisure Centres Overall,Advertising/Promoting Services,255
http://statistics.data.gov.uk/id/local-authority/12UE,Huntingdonshire District Council,15/04/2010,54910,140.96,T N T Post Midlands Ltd,CR479965,Leisure Development,Postage,231
http://statistics.data.gov.uk/id/local-authority/12UE,Huntingdonshire District Council,08/04/2010,54359,528.75,Wright Foundation,CR403086,Leisure Development,Training - Operational,131
http://statistics.data.gov.uk/id/local-authority/12UE,Huntingdonshire District Council,29/04/2010,56487,"66,871.11",Pinelog Ltd,CR405529,Leisure Services Capital,Building Construction,300
http://statistics.data.gov.uk/id/local-authority/12UE,Huntingdonshire District Council,01/04/2010,54344,969.37,Richard Herrmann Assoc Ltd,CR403316,Leisure Services Capital,Consultants Other,711
http://statistics.data.gov.uk/id/local-authority/12UE,Huntingdonshire District Council,29/04/2010,57180,"1,324.52",Edf Energy Networks,CR403938,Leisure Services Capital,Sitework,359
http://statistics.data.gov.uk/id/local-authority/12UE,Huntingdonshire District Council,01/04/2010,52826,681.5,James Button & Co,CR405456,Licences,Books & Publications,250
http://statistics.data.gov.uk/id/local-authority/12UE,Huntingdonshire District Council,08/04/2010,54248,"1,616.80",Mogo Uk,CR410378,Licences,Licence Plates,564
http://statistics.data.gov.uk/id/local-authority/12UE,Huntingdonshire District Council,22/04/2010,56498,663,Mo Motors,CR406493,Licences,Vehicle Inspection,618
http://statistics.data.gov.uk/id/local-authority/12UE,Huntingdonshire District Council,29/04/2010,55879,663,Mo Motors,CR406493,Licences,Vehicle Inspection,618
http://statistics.data.gov.uk/id/local-authority/12UE,Huntingdonshire District Council,22/04/2010,55782,879,Mo Motors,CR406493,Licences,Vehicle Inspection,618
http://statistics.data.gov.uk/id/local-authority/12UE,Huntingdonshire District Council,15/04/2010,54878,"5,142.39",Broxap Ltd,CR415958,Littering,Litter Bins,520
http://statistics.data.gov.uk/id/local-authority/12UE,Huntingdonshire District Council,22/04/2010,54875,"6,798.78",Glasdon Uk Ltd,CR002827,Littering,Litter Bins,520
http://statistics.data.gov.uk/id/local-authority/12UE,Huntingdonshire District Council,29/04/2010,55342,"2,348.83",J Breheny Contractors Ltd,CR000314,Littering,Litter Bins,520
http://statistics.data.gov.uk/id/local-authority/12UE,Huntingdonshire District Council,15/04/2010,55500,"1,948.15",Peterborough Evening Telegraph,CR400234,Local Development Framework,Advertising - Statutory Notice,257
http://statistics.data.gov.uk/id/local-authority/12UE,Huntingdonshire District Council,22/04/2010,54946,"2,056.25",Aecom,CR478307,Local Development Framework,Consultants Other,711
http://statistics.data.gov.uk/id/local-authority/12UE,Huntingdonshire District Council,15/04/2010,56153,"2,350.00",Ian White Associates (Navigation ) Ltd,CR480131,Local Development Framework,Consultants Other,711
http://statistics.data.gov.uk/id/local-authority/12UE,Huntingdonshire District Council,29/04/2010,55363,747.3,Nabma,CR030578,Markets,Corporate Subscriptions,754
http://statistics.data.gov.uk/id/local-authority/12UE,Huntingdonshire District Council,01/04/2010,54850,"1,994.08",Swalec,CR407130,Markets,Electricity,420
http://statistics.data.gov.uk/id/local-authority/12UE,Huntingdonshire District Council,22/04/2010,54926,"3,899.44",Charles Endirect Ltd,CR406105,Markets,Sitework,359
http://statistics.data.gov.uk/id/local-authority/12UE,Huntingdonshire District Council,15/04/2010,54865,"1,062.20",Centre For Public Scrutiny,CR480351,Member Allowances & Support,Training - Professional,130
http://statistics.data.gov.uk/id/local-authority/12UE,Huntingdonshire District Council,01/04/2010,53763,"1,645.00",I & Dea,CR413293,Member Allowances & Support,Training - Professional,130
http://statistics.data.gov.uk/id/local-authority/12UE,Huntingdonshire District Council,08/04/2010,54247,680.03,Coral Design Management,CR029621,Misc Countryside Sites,Promotions And Exhibitions,743
http://statistics.data.gov.uk/id/local-authority/12UE,Huntingdonshire District Council,08/04/2010,53825,"2,797.97",Coral Design Management,CR029621,Misc Countryside Sites,Promotions And Exhibitions,743
http://statistics.data.gov.uk/id/local-authority/12UE,Huntingdonshire District Council,15/04/2010,55324,602.5,River Lane Nurseries,CR407035,Misc Countryside Sites,Trees/Shrubs,555
http://statistics.data.gov.uk/id/local-authority/12UE,Huntingdonshire District Council,08/04/2010,490669,"5,746.25",Disability Information Service Huntingdonshir,CR408884,Miscellaneous Grants,Grants (Paid Out),800
http://statistics.data.gov.uk/id/local-authority/12UE,Huntingdonshire District Council,08/04/2010,490665,"9,285.00",Huntingdonshire  Volunteer Centre,CR410643,Miscellaneous Grants,Grants (Paid Out),800
http://statistics.data.gov.uk/id/local-authority/12UE,Huntingdonshire District Council,08/04/2010,490661,"45,812.50",Huntingdonshire Citizens Advice Bureau,CR406206,Miscellaneous Grants,Grants (Paid Out),800
http://statistics.data.gov.uk/id/local-authority/12UE,Huntingdonshire District Council,08/04/2010,490662,"10,300.00",Hunts Forum Of Voluntary Organisations,CR030582,Miscellaneous Grants,Grants (Paid Out),800
http://statistics.data.gov.uk/id/local-authority/12UE,Huntingdonshire District Council,08/04/2010,490666,"6,607.50",Hunts Shopmobility,CR429218,Miscellaneous Grants,Grants (Paid Out),800
http://statistics.data.gov.uk/id/local-authority/12UE,Huntingdonshire District Council,08/04/2010,490667,"6,592.50",St Barnabas Community Learning Centre,CR412072,Miscellaneous Grants,Grants (Paid Out),800
http://statistics.data.gov.uk/id/local-authority/12UE,Huntingdonshire District Council,01/04/2010,54885,"7,000.00",Cambridgeshire County Council,CR017440,Network Services,Consultants Other,711
http://statistics.data.gov.uk/id/local-authority/12UE,Huntingdonshire District Council,08/04/2010,490687,881.25,Northgate Arinso,CR416738,Network Services,Consultants Other,711
http://statistics.data.gov.uk/id/local-authority/12UE,Huntingdonshire District Council,01/04/2010,53381,520.53,Rittal Limitred,CR417141,Network Services,Equipment Maintenance,511
http://statistics.data.gov.uk/id/local-authority/12UE,Huntingdonshire District Council,15/04/2010,54473,"1,612.40",Scc,CR409247,Network Services,Equipment Maintenance,511
http://statistics.data.gov.uk/id/local-authority/12UE,Huntingdonshire District Council,29/04/2010,55772,"13,271.00",Eacs Ltd,CR404499,Network Services,I T Line Rental,248
http://statistics.data.gov.uk/id/local-authority/12UE,Huntingdonshire District Council,15/04/2010,55492,"2,729.53",Eacs Ltd,CR404499,Network Services,I T Line Rental,248
http://statistics.data.gov.uk/id/local-authority/12UE,Huntingdonshire District Council,08/04/2010,55491,773.74,Eacs Ltd,CR404499,Network Services,I T Line Rental,248
http://statistics.data.gov.uk/id/local-authority/12UE,Huntingdonshire District Council,01/04/2010,54400,"1,498.13",Virgin Media Business,CR033120,Network Services,I T Line Rental,248
http://statistics.data.gov.uk/id/local-authority/12UE,Huntingdonshire District Council,08/04/2010,54468,"4,723.51",Eacs Ltd,CR404499,Network Services,Software,206
http://statistics.data.gov.uk/id/local-authority/12UE,Huntingdonshire District Council,29/04/2010,55741,564,Dal-Rod Uk Ltd,CR002782,Nightsoil,Subcontractors,777
http://statistics.data.gov.uk/id/local-authority/12UE,Huntingdonshire District Council,29/04/2010,55740,564,Dal-Rod Uk Ltd,CR002782,Nightsoil,Subcontractors,777
http://statistics.data.gov.uk/id/local-authority/12UE,Huntingdonshire District Council,22/04/2010,55851,"105,990.33",Carillion A M Developments,CR415549,Offices Capital,Building Construction,300
http://statistics.data.gov.uk/id/local-authority/12UE,Huntingdonshire District Council,29/04/2010,55971,"7,581.69",Lambert Smith Hampton,CR410940,Offices Capital,Consultants Other,711
http://statistics.data.gov.uk/id/local-authority/12UE,Huntingdonshire District Council,22/04/2010,55969,"19,975.00",Lambert Smith Hampton,CR410940,Offices Capital,Consultants Other,711
http://statistics.data.gov.uk/id/local-authority/12UE,Huntingdonshire District Council,15/04/2010,56160,"1,092.75",Q-Matic Uk Ltd,CR417152,Offices Capital,Electrical,332
http://statistics.data.gov.uk/id/local-authority/12UE,Huntingdonshire District Council,01/04/2010,53498,"5,926.70",Cps Manufacturing Co,CR480092,Offices Capital,Gen Building Mtce - Planned,304
http://statistics.data.gov.uk/id/local-authority/12UE,Huntingdonshire District Council,08/04/2010,55070,"6,428.38",Cambridge Interiors,CR480355,Offices Capital,Gen Building Mtce - Responsive,303
http://statistics.data.gov.uk/id/local-authority/12UE,Huntingdonshire District Council,08/04/2010,55069,686.63,Desso Ltd,CR479285,Offices Capital,Gen Building Mtce - Responsive,303
http://statistics.data.gov.uk/id/local-authority/12UE,Huntingdonshire District Council,22/04/2010,54796,"7,847.01",Playfords Ltd,CR479055,Offices Capital,Gen Building Mtce - Responsive,303
http://statistics.data.gov.uk/id/local-authority/12UE,Huntingdonshire District Council,29/04/2010,56030,"2,645.87",Dell Computer Corporation,CR408320,Offices Capital,P C'S And Accessories,201
http://statistics.data.gov.uk/id/local-authority/12UE,Huntingdonshire District Council,01/04/2010,53294,"7,837.99",Semco Signs Ltd,CR083202,Offices Capital,Signs,565
http://statistics.data.gov.uk/id/local-authority/12UE,Huntingdonshire District Council,15/04/2010,54427,"3,920.98",Model Signs Ltd,CR480144,Offices Capital,Signs Erecting & Removal,361
http://statistics.data.gov.uk/id/local-authority/12UE,Huntingdonshire District Council,22/04/2010,55148,209.76,Bigprinting,CR416383,One Leisure Huntingdon,Advertising/Promoting Services,255
http://statistics.data.gov.uk/id/local-authority/12UE,Huntingdonshire District Council,29/04/2010,55468,132.78,Rotary Printers (Stourport) Lt,CR032312,One Leisure Huntingdon,Advertising/Promoting Services,255
http://statistics.data.gov.uk/id/local-authority/12UE,Huntingdonshire District Council,29/04/2010,57071,291.42,G4s Cashservices Uk Ltd,CR407133,One Leisure Huntingdon,Cash Collection,702
http://statistics.data.gov.uk/id/local-authority/12UE,Huntingdonshire District Council,08/04/2010,54353,291.42,G4s Cashservices Uk Ltd,CR407133,One Leisure Huntingdon,Cash Collection,702
http://statistics.data.gov.uk/id/local-authority/12UE,Huntingdonshire District Council,22/04/2010,56407,"1,482.61",Swalec,CR407130,One Leisure Huntingdon,Electricity,420
http://statistics.data.gov.uk/id/local-authority/12UE,Huntingdonshire District Council,29/04/2010,56006,747.3,Accordial Uk,CR416731,One Leisure Huntingdon,Equipment Maintenance,511
http://statistics.data.gov.uk/id/local-authority/12UE,Huntingdonshire District Council,01/04/2010,55028,564.01,Csl Group,CR406172,One Leisure Huntingdon,Equipment Maintenance,511
http://statistics.data.gov.uk/id/local-authority/12UE,Huntingdonshire District Council,08/04/2010,55037,842.41,Safe Secure Locker Services Ltd,CR478312,One Leisure Huntingdon,Equipment Maintenance,511
http://statistics.data.gov.uk/id/local-authority/12UE,Huntingdonshire District Council,08/04/2010,55416,643.32,Startac,CR429227,One Leisure Huntingdon,Equipment Maintenance,511
http://statistics.data.gov.uk/id/local-authority/12UE,Huntingdonshire District Council,22/04/2010,55918,905.69,E-On Energy,CR416430,One Leisure Huntingdon,Gas,421
http://statistics.data.gov.uk/id/local-authority/12UE,Huntingdonshire District Council,22/04/2010,55908,"3,377.16",E-On Energy,CR416430,One Leisure Huntingdon,Gas,421
http://statistics.data.gov.uk/id/local-authority/12UE,Huntingdonshire District Council,08/04/2010,54920,490.26,Elecheck (Est) Ltd,CR480242,One Leisure Huntingdon,Gen Building Mtce - Planned,304
http://statistics.data.gov.uk/id/local-authority/12UE,Huntingdonshire District Council,22/04/2010,56007,501.05,Technical Surfaces Ltd,CR031941,One Leisure Huntingdon,Grounds Mtce Contractors,351
http://statistics.data.gov.uk/id/local-authority/12UE,Huntingdonshire District Council,15/04/2010,56159,184,Gladstone Mrm,CR405717,One Leisure Huntingdon,Network Hardware,205
http://statistics.data.gov.uk/id/local-authority/12UE,Huntingdonshire District Council,15/04/2010,55057,605.37,Combined Energy Solutions,CR003063,One Leisure Huntingdon,Plant & Equipment Maintenance,380
http://statistics.data.gov.uk/id/local-authority/12UE,Huntingdonshire District Council,01/04/2010,55135,80,Bigprinting,CR416383,One Leisure Huntingdon,Printing (External),220
http://statistics.data.gov.uk/id/local-authority/12UE,Huntingdonshire District Council,22/04/2010,56631,"1,732.86",Anglian Water Payment Centre,CR409323,One Leisure Huntingdon,Sewerage,433
http://statistics.data.gov.uk/id/local-authority/12UE,Huntingdonshire District Council,15/04/2010,56169,921.42,Gladstone Mrm,CR405717,One Leisure Huntingdon,Software,206
http://statistics.data.gov.uk/id/local-authority/12UE,Huntingdonshire District Council,22/04/2010,55528,"1,401.19",Gladstone Mrm,CR405717,One Leisure Huntingdon,Software,206
http://statistics.data.gov.uk/id/local-authority/12UE,Huntingdonshire District Council,29/04/2010,56183,528.75,Wright Foundation,CR403086,One Leisure Huntingdon,Training - Operational,131
http://statistics.data.gov.uk/id/local-authority/12UE,Huntingdonshire District Council,08/04/2010,55410,546.65,Booker Cash And Carry,CR027611,One Leisure Huntingdon,Vending Materials,560
http://statistics.data.gov.uk/id/local-authority/12UE,Huntingdonshire District Council,01/04/2010,55035,501.26,Booker Cash And Carry,CR027611,One Leisure Huntingdon,Vending Materials,560
http://statistics.data.gov.uk/id/local-authority/12UE,Huntingdonshire District Council,22/04/2010,55992,776.19,Glaxosmithkline,CR010424,One Leisure Huntingdon,Vending Materials,560
http://statistics.data.gov.uk/id/local-authority/12UE,Huntingdonshire District Council,29/04/2010,55468,132.78,Rotary Printers (Stourport) Lt,CR032312,One Leisure Ramsey,Advertising/Promoting Services,255
http://statistics.data.gov.uk/id/local-authority/12UE,Huntingdonshire District Council,29/04/2010,57071,72.86,G4s Cashservices Uk Ltd,CR407133,One Leisure Ramsey,Cash Collection,702
http://statistics.data.gov.uk/id/local-authority/12UE,Huntingdonshire District Council,08/04/2010,54353,72.86,G4s Cashservices Uk Ltd,CR407133,One Leisure Ramsey,Cash Collection,702
http://statistics.data.gov.uk/id/local-authority/12UE,Huntingdonshire District Council,22/04/2010,56401,"7,820.41",Swalec,CR407130,One Leisure Ramsey,Electricity,420
http://statistics.data.gov.uk/id/local-authority/12UE,Huntingdonshire District Council,15/04/2010,54816,317.25,Mcintyre Leisure,CR404059,One Leisure Ramsey,Equipment Maintenance,511
http://statistics.data.gov.uk/id/local-authority/12UE,Huntingdonshire District Council,22/04/2010,55915,"1,987.54",E-On Energy,CR416430,One Leisure Ramsey,Gas,421
http://statistics.data.gov.uk/id/local-authority/12UE,Huntingdonshire District Council,08/04/2010,55540,886.2,Ecocleen Services Limited,CR406985,One Leisure Ramsey,Gen Building Mtce - Planned,304
http://statistics.data.gov.uk/id/local-authority/12UE,Huntingdonshire District Council,15/04/2010,56159,92,Gladstone Mrm,CR405717,One Leisure Ramsey,Network Hardware,205
http://statistics.data.gov.uk/id/local-authority/12UE,Huntingdonshire District Council,01/04/2010,50816,742.89,Siemens Plc,CR478123,One Leisure Ramsey,Plant & Equipment Maintenance,380
http://statistics.data.gov.uk/id/local-authority/12UE,Huntingdonshire District Council,01/04/2010,55135,190,Bigprinting,CR416383,One Leisure Ramsey,Printing (External),220
http://statistics.data.gov.uk/id/local-authority/12UE,Huntingdonshire District Council,22/04/2010,55528,700.59,Gladstone Mrm,CR405717,One Leisure Ramsey,Software,206
http://statistics.data.gov.uk/id/local-authority/12UE,Huntingdonshire District Council,29/04/2010,55468,132.78,Rotary Printers (Stourport) Lt,CR032312,One Leisure Sawtry,Advertising/Promoting Services,255
http://statistics.data.gov.uk/id/local-authority/12UE,Huntingdonshire District Council,29/04/2010,57071,72.86,G4s Cashservices Uk Ltd,CR407133,One Leisure Sawtry,Cash Collection,702
http://statistics.data.gov.uk/id/local-authority/12UE,Huntingdonshire District Council,08/04/2010,54353,72.86,G4s Cashservices Uk Ltd,CR407133,One Leisure Sawtry,Cash Collection,702
http://statistics.data.gov.uk/id/local-authority/12UE,Huntingdonshire District Council,15/04/2010,55805,"11,731.20",Startac,CR429227,One Leisure Sawtry,Equipment Purchases,500
http://statistics.data.gov.uk/id/local-authority/12UE,Huntingdonshire District Council,22/04/2010,55914,"2,463.96",E-On Energy,CR416430,One Leisure Sawtry,Gas,421
http://statistics.data.gov.uk/id/local-authority/12UE,Huntingdonshire District Council,15/04/2010,56159,92,Gladstone Mrm,CR405717,One Leisure Sawtry,Network Hardware,205
http://statistics.data.gov.uk/id/local-authority/12UE,Huntingdonshire District Council,01/04/2010,55135,100,Bigprinting,CR416383,One Leisure Sawtry,Printing (External),220
http://statistics.data.gov.uk/id/local-authority/12UE,Huntingdonshire District Council,22/04/2010,55528,700.59,Gladstone Mrm,CR405717,One Leisure Sawtry,Software,206
http://statistics.data.gov.uk/id/local-authority/12UE,Huntingdonshire District Council,22/04/2010,55148,209.76,Bigprinting,CR416383,One Leisure St Ives,Advertising/Promoting Services,255
http://statistics.data.gov.uk/id/local-authority/12UE,Huntingdonshire District Council,29/04/2010,55468,132.78,Rotary Printers (Stourport) Lt,CR032312,One Leisure St Ives,Advertising/Promoting Services,255
http://statistics.data.gov.uk/id/local-authority/12UE,Huntingdonshire District Council,29/04/2010,56082,824.73,Uk Point Of Sale Group Ltd,CR478991,One Leisure St Ives,Advertising/Promoting Services,255
http://statistics.data.gov.uk/id/local-authority/12UE,Huntingdonshire District Council,29/04/2010,57245,"1,702.39",Booker Cash And Carry,CR027611,One Leisure St Ives,Bar Provisions,558
http://statistics.data.gov.uk/id/local-authority/12UE,Huntingdonshire District Council,22/04/2010,56538,45.76,Booker Cash And Carry,CR027611,One Leisure St Ives,Bar Provisions,558
http://statistics.data.gov.uk/id/local-authority/12UE,Huntingdonshire District Council,22/04/2010,56535,728.56,Booker Cash And Carry,CR027611,One Leisure St Ives,Bar Provisions,558
http://statistics.data.gov.uk/id/local-authority/12UE,Huntingdonshire District Council,01/04/2010,54985,176.31,Booker Cash And Carry,CR027611,One Leisure St Ives,Bar Provisions,558
http://statistics.data.gov.uk/id/local-authority/12UE,Huntingdonshire District Council,01/04/2010,54967,679.17,Booker Cash And Carry,CR027611,One Leisure St Ives,Bar Provisions,558
http://statistics.data.gov.uk/id/local-authority/12UE,Huntingdonshire District Council,29/04/2010,57248,"1,109.71",Heineken Uk Ltd,CR032678,One Leisure St Ives,Bar Provisions,558
http://statistics.data.gov.uk/id/local-authority/12UE,Huntingdonshire District Council,29/04/2010,57263,530.85,Valassis Ltd,CR082937,One Leisure St Ives,Bar Provisions,558
http://statistics.data.gov.uk/id/local-authority/12UE,Huntingdonshire District Council,29/04/2010,57071,218.59,G4s Cashservices Uk Ltd,CR407133,One Leisure St Ives,Cash Collection,702
http://statistics.data.gov.uk/id/local-authority/12UE,Huntingdonshire District Council,08/04/2010,54353,218.59,G4s Cashservices Uk Ltd,CR407133,One Leisure St Ives,Cash Collection,702
http://statistics.data.gov.uk/id/local-authority/12UE,Huntingdonshire District Council,22/04/2010,56538,1.36,Booker Cash And Carry,CR027611,One Leisure St Ives,Catering Materials,559
http://statistics.data.gov.uk/id/local-authority/12UE,Huntingdonshire District Council,22/04/2010,56534,334.33,Booker Cash And Carry,CR027611,One Leisure St Ives,Catering Materials,559
http://statistics.data.gov.uk/id/local-authority/12UE,Huntingdonshire District Council,29/04/2010,57263,25.14,Valassis Ltd,CR082937,One Leisure St Ives,Catering Materials,559
http://statistics.data.gov.uk/id/local-authority/12UE,Huntingdonshire District Council,22/04/2010,55093,710.74,Brenntag Uk Ltd,CR015017,One Leisure St Ives,Chemicals,551
http://statistics.data.gov.uk/id/local-authority/12UE,Huntingdonshire District Council,29/04/2010,56584,554.62,Maskearaid Ind Supplies,CR033423,One Leisure St Ives,Cleaning Materials,443
http://statistics.data.gov.uk/id/local-authority/12UE,Huntingdonshire District Council,29/04/2010,57263,50.68,Valassis Ltd,CR082937,One Leisure St Ives,Cleaning Materials,443
http://statistics.data.gov.uk/id/local-authority/12UE,Huntingdonshire District Council,22/04/2010,56538,948.6,Booker Cash And Carry,CR027611,One Leisure St Ives,Confectionery,572
http://statistics.data.gov.uk/id/local-authority/12UE,Huntingdonshire District Council,22/04/2010,56534,330.57,Booker Cash And Carry,CR027611,One Leisure St Ives,Confectionery,572
http://statistics.data.gov.uk/id/local-authority/12UE,Huntingdonshire District Council,01/04/2010,54985,985.75,Booker Cash And Carry,CR027611,One Leisure St Ives,Confectionery,572
http://statistics.data.gov.uk/id/local-authority/12UE,Huntingdonshire District Council,29/04/2010,57263,206,Valassis Ltd,CR082937,One Leisure St Ives,Confectionery,572
http://statistics.data.gov.uk/id/local-authority/12UE,Huntingdonshire District Council,22/04/2010,56404,"9,019.51",Swalec,CR407130,One Leisure St Ives,Electricity,420
http://statistics.data.gov.uk/id/local-authority/12UE,Huntingdonshire District Council,22/04/2010,56399,"2,150.15",Swalec,CR407130,One Leisure St Ives,Electricity,420
http://statistics.data.gov.uk/id/local-authority/12UE,Huntingdonshire District Council,29/04/2010,55382,717.93,Hoval Limited,CR004837,One Leisure St Ives,Equipment Maintenance,511
http://statistics.data.gov.uk/id/local-authority/12UE,Huntingdonshire District Council,22/04/2010,56179,"15,220.97",Technogym Uk Ltd,CR033037,One Leisure St Ives,Equipment Maintenance,511
http://statistics.data.gov.uk/id/local-authority/12UE,Huntingdonshire District Council,15/04/2010,56175,963.5,Bigprinting,CR416383,One Leisure St Ives,Equipment Purchases,500
http://statistics.data.gov.uk/id/local-authority/12UE,Huntingdonshire District Council,22/04/2010,56177,"2,488.06",Direct Communications Ltd,CR405782,One Leisure St Ives,Equipment Purchases,500
http://statistics.data.gov.uk/id/local-authority/12UE,Huntingdonshire District Council,15/04/2010,55527,"2,488.06",Direct Communications Ltd,CR405782,One Leisure St Ives,Equipment Purchases,500
http://statistics.data.gov.uk/id/local-authority/12UE,Huntingdonshire District Council,08/04/2010,55088,506.43,Roger Wilson Electronics,CR028041,One Leisure St Ives,Equipment Purchases,500
http://statistics.data.gov.uk/id/local-authority/12UE,Huntingdonshire District Council,22/04/2010,55919,809.94,E-On Energy,CR416430,One Leisure St Ives,Gas,421
http://statistics.data.gov.uk/id/local-authority/12UE,Huntingdonshire District Council,22/04/2010,55912,"3,886.08",E-On Energy,CR416430,One Leisure St Ives,Gas,421
http://statistics.data.gov.uk/id/local-authority/12UE,Huntingdonshire District Council,15/04/2010,55095,"2,124.28",Hytrac Lifts Ltd,CR030618,One Leisure St Ives,Gen Building Mtce - Planned,304
http://statistics.data.gov.uk/id/local-authority/12UE,Huntingdonshire District Council,08/04/2010,55088,465.31,Roger Wilson Electronics,CR028041,One Leisure St Ives,Gen Building Mtce - Responsive,303
http://statistics.data.gov.uk/id/local-authority/12UE,Huntingdonshire District Council,08/04/2010,55087,537.58,Roger Wilson Electronics,CR028041,One Leisure St Ives,Gen Building Mtce - Responsive,303
http://statistics.data.gov.uk/id/local-authority/12UE,Huntingdonshire District Council,08/04/2010,54365,"1,043.40",Lloyds Tsb Commercial Finance Ltd,CR410928,One Leisure St Ives,Hired Staff,100
http://statistics.data.gov.uk/id/local-authority/12UE,Huntingdonshire District Council,01/04/2010,55104,"2,392.72",Starlite Roadshow,CR024127,One Leisure St Ives,Hired Staff,100
http://statistics.data.gov.uk/id/local-authority/12UE,Huntingdonshire District Council,29/04/2010,57245,56.68,Booker Cash And Carry,CR027611,One Leisure St Ives,Materials,550
http://statistics.data.gov.uk/id/local-authority/12UE,Huntingdonshire District Council,15/04/2010,56159,184,Gladstone Mrm,CR405717,One Leisure St Ives,Network Hardware,205
http://statistics.data.gov.uk/id/local-authority/12UE,Huntingdonshire District Council,01/04/2010,55135,80,Bigprinting,CR416383,One Leisure St Ives,Printing (External),220
http://statistics.data.gov.uk/id/local-authority/12UE,Huntingdonshire District Council,15/04/2010,55529,992.87,Premier Logos Ltd,CR401203,One Leisure St Ives,Protective Clothing & Uniforms,163
http://statistics.data.gov.uk/id/local-authority/12UE,Huntingdonshire District Council,15/04/2010,56169,921.44,Gladstone Mrm,CR405717,One Leisure St Ives,Software,206
http://statistics.data.gov.uk/id/local-authority/12UE,Huntingdonshire District Council,22/04/2010,55528,"1,401.19",Gladstone Mrm,CR405717,One Leisure St Ives,Software,206
http://statistics.data.gov.uk/id/local-authority/12UE,Huntingdonshire District Council,15/04/2010,54508,"5,804.50",Sporty Co,CR032579,One Leisure St Ives,Sports Equipment,524
http://statistics.data.gov.uk/id/local-authority/12UE,Huntingdonshire District Council,29/04/2010,57263,12.29,Valassis Ltd,CR082937,One Leisure St Ives,Vending Materials,560
http://statistics.data.gov.uk/id/local-authority/12UE,Huntingdonshire District Council,15/04/2010,56171,520.94,Biffa Waste Services Ltd,CR000376,One Leisure St Ives,Waste Disposal,763
http://statistics.data.gov.uk/id/local-authority/12UE,Huntingdonshire District Council,29/04/2010,57027,"4,567.24",Anglian Water,CR000071,One Leisure St Ives,Water,432
http://statistics.data.gov.uk/id/local-authority/12UE,Huntingdonshire District Council,22/04/2010,55381,"3,170.79",Cambridge Water Plc,CR000172,One Leisure St Ives,Water,432
http://statistics.data.gov.uk/id/local-authority/12UE,Huntingdonshire District Council,15/04/2010,55938,"6,840.00",St Ivo School,CR408986,One Leisure St Ives,Water,432
http://statistics.data.gov.uk/id/local-authority/12UE,Huntingdonshire District Council,29/04/2010,56182,587.5,Archant Herts & Cambs,CR415764,One Leisure St Neots,Advertising/Promoting Services,255
http://statistics.data.gov.uk/id/local-authority/12UE,Huntingdonshire District Council,29/04/2010,56085,508.03,Bannerbox,CR478802,One Leisure St Neots,Advertising/Promoting Services,255
http://statistics.data.gov.uk/id/local-authority/12UE,Huntingdonshire District Council,22/04/2010,55148,209.76,Bigprinting,CR416383,One Leisure St Neots,Advertising/Promoting Services,255
http://statistics.data.gov.uk/id/local-authority/12UE,Huntingdonshire District Council,08/04/2010,55142,909.45,Bigprinting,CR416383,One Leisure St Neots,Advertising/Promoting Services,255
http://statistics.data.gov.uk/id/local-authority/12UE,Huntingdonshire District Council,29/04/2010,55468,132.76,Rotary Printers (Stourport) Lt,CR032312,One Leisure St Neots,Advertising/Promoting Services,255
http://statistics.data.gov.uk/id/local-authority/12UE,Huntingdonshire District Council,15/04/2010,55735,120.03,Booker Cash And Carry,CR027611,One Leisure St Neots,Bar Provisions,558
http://statistics.data.gov.uk/id/local-authority/12UE,Huntingdonshire District Council,22/04/2010,55737,80.21,King Bros,CR411339,One Leisure St Neots,Bar Provisions,558
http://statistics.data.gov.uk/id/local-authority/12UE,Huntingdonshire District Council,29/04/2010,57071,437.14,G4s Cashservices Uk Ltd,CR407133,One Leisure St Neots,Cash Collection,702
http://statistics.data.gov.uk/id/local-authority/12UE,Huntingdonshire District Council,08/04/2010,54353,437.14,G4s Cashservices Uk Ltd,CR407133,One Leisure St Neots,Cash Collection,702
http://statistics.data.gov.uk/id/local-authority/12UE,Huntingdonshire District Council,15/04/2010,55735,25.12,Booker Cash And Carry,CR027611,One Leisure St Neots,Catering Materials,559
http://statistics.data.gov.uk/id/local-authority/12UE,Huntingdonshire District Council,22/04/2010,55737,258.47,King Bros,CR411339,One Leisure St Neots,Catering Materials,559
http://statistics.data.gov.uk/id/local-authority/12UE,Huntingdonshire District Council,22/04/2010,55857,602.03,Brenntag Uk Ltd,CR015017,One Leisure St Neots,Chemicals,551
http://statistics.data.gov.uk/id/local-authority/12UE,Huntingdonshire District Council,22/04/2010,55737,307.41,King Bros,CR411339,One Leisure St Neots,Confectionery,572
http://statistics.data.gov.uk/id/local-authority/12UE,Huntingdonshire District Council,22/04/2010,56398,"6,489.43",Swalec,CR407130,One Leisure St Neots,Electricity,420
http://statistics.data.gov.uk/id/local-authority/12UE,Huntingdonshire District Council,22/04/2010,56505,"3,747.25",Technogym Uk Ltd,CR033037,One Leisure St Neots,Equipment Maintenance,511
http://statistics.data.gov.uk/id/local-authority/12UE,Huntingdonshire District Council,15/04/2010,55735,410.97,Booker Cash And Carry,CR027611,One Leisure St Neots,Equipment Purchases,500
http://statistics.data.gov.uk/id/local-authority/12UE,Huntingdonshire District Council,15/04/2010,56091,"1,116.25",Healthcheck Services Ltd,CR480387,One Leisure St Neots,Equipment Purchases,500
http://statistics.data.gov.uk/id/local-authority/12UE,Huntingdonshire District Council,22/04/2010,56728,517,The Menu Shop,CR480339,One Leisure St Neots,Equipment Purchases,500
http://statistics.data.gov.uk/id/local-authority/12UE,Huntingdonshire District Council,22/04/2010,55911,796.81,E-On Energy,CR416430,One Leisure St Neots,Gas,421
http://statistics.data.gov.uk/id/local-authority/12UE,Huntingdonshire District Council,22/04/2010,55910,"2,837.98",E-On Energy,CR416430,One Leisure St Neots,Gas,421
http://statistics.data.gov.uk/id/local-authority/12UE,Huntingdonshire District Council,01/04/2010,53871,645.06,Roger Wilson Electronics,CR028041,One Leisure St Neots,Gen Building Mtce - Responsive,303
http://statistics.data.gov.uk/id/local-authority/12UE,Huntingdonshire District Council,08/04/2010,55448,710.15,Longsands Store,CR410895,One Leisure St Neots,Materials,550
http://statistics.data.gov.uk/id/local-authority/12UE,Huntingdonshire District Council,15/04/2010,56159,184,Gladstone Mrm,CR405717,One Leisure St Neots,Network Hardware,205
http://statistics.data.gov.uk/id/local-authority/12UE,Huntingdonshire District Council,01/04/2010,55135,80,Bigprinting,CR416383,One Leisure St Neots,Printing (External),220
http://statistics.data.gov.uk/id/local-authority/12UE,Huntingdonshire District Council,15/04/2010,56169,921.44,Gladstone Mrm,CR405717,One Leisure St Neots,Software,206
http://statistics.data.gov.uk/id/local-authority/12UE,Huntingdonshire District Council,22/04/2010,55528,"1,401.19",Gladstone Mrm,CR405717,One Leisure St Neots,Software,206
http://statistics.data.gov.uk/id/local-authority/12UE,Huntingdonshire District Council,29/04/2010,56183,528.75,Wright Foundation,CR403086,One Leisure St Neots,Training - Operational,131
http://statistics.data.gov.uk/id/local-authority/12UE,Huntingdonshire District Council,08/04/2010,55446,"1,073.07",Caterserve Snacks Ltd,CR478090,One Leisure St Neots,Vending Materials,560
http://statistics.data.gov.uk/id/local-authority/12UE,Huntingdonshire District Council,22/04/2010,55430,761.69,Caterserve Snacks Ltd,CR478090,One Leisure St Neots,Vending Materials,560
http://statistics.data.gov.uk/id/local-authority/12UE,Huntingdonshire District Council,08/04/2010,55330,"1,186.77",Anglian Water,CR000071,One Leisure St Neots,Water,432
http://statistics.data.gov.uk/id/local-authority/12UE,Huntingdonshire District Council,15/04/2010,55768,641.55,Flora Tec Ltd,CR028191,Operations Mgt Units,Equipment Cleaning,512
http://statistics.data.gov.uk/id/local-authority/12UE,Huntingdonshire District Council,22/04/2010,55518,508.29,Fenland Factors,CR024722,Operations Mgt Units,Materials,550
http://statistics.data.gov.uk/id/local-authority/12UE,Huntingdonshire District Council,15/04/2010,54462,916.44,Comtec,CR480140,Operations Mgt Units,Other I T Hardware,203
http://statistics.data.gov.uk/id/local-authority/12UE,Huntingdonshire District Council,15/04/2010,54910,142.48,T N T Post Midlands Ltd,CR479965,Operations Mgt Units,Postage,231
http://statistics.data.gov.uk/id/local-authority/12UE,Huntingdonshire District Council,01/04/2010,53974,108.25,Phoenix Software Ltd,CR031918,Operations Mgt Units,Software,206
http://statistics.data.gov.uk/id/local-authority/12UE,Huntingdonshire District Council,29/04/2010,56125,"1,157.38",Freight Transport Association,CR003104,Operations Mgt Units,Training - Operational,131
http://statistics.data.gov.uk/id/local-authority/12UE,Huntingdonshire District Council,22/04/2010,491127,400,Post Office  Ltd,CR008902,Operations Mgt Units,Vehicle Licence,609
http://statistics.data.gov.uk/id/local-authority/12UE,Huntingdonshire District Council,29/04/2010,55348,649.66,Marshall Motor Group,CR009641,Operations Mgt Units,Vehicle Maintenance,619
http://statistics.data.gov.uk/id/local-authority/12UE,Huntingdonshire District Council,08/04/2010,53812,613.39,Freedom Lubricants Ltd,CR411569,Operations Mgt Units,Vehicle Oil,626
http://statistics.data.gov.uk/id/local-authority/12UE,Huntingdonshire District Council,08/04/2010,53734,"5,940.91",Elysian Associates Ltd,CR411944,Other Expenditure Other,Consultants Other,711
http://statistics.data.gov.uk/id/local-authority/12UE,Huntingdonshire District Council,22/04/2010,55071,"3,096.13",Lattenbury Services,CR406847,Parks & Open Spaces,"Fences, Walls, Gates",356
http://statistics.data.gov.uk/id/local-authority/12UE,Huntingdonshire District Council,22/04/2010,55506,585,Bugs Pest Control,CR406893,Parks & Open Spaces,Pest Control,738
http://statistics.data.gov.uk/id/local-authority/12UE,Huntingdonshire District Council,22/04/2010,55155,"4,764.63",Clements Play Management Ltd,CR478419,Parks & Open Spaces,Playground Equipment,360
http://statistics.data.gov.uk/id/local-authority/12UE,Huntingdonshire District Council,22/04/2010,56161,"2,906.52",Kompan Ltd,CR405497,Parks & Open Spaces,Playground Equipment,360
http://statistics.data.gov.uk/id/local-authority/12UE,Huntingdonshire District Council,22/04/2010,55339,762.58,Soft Surfaces,CR415861,Parks & Open Spaces,Playground Equipment,360
http://statistics.data.gov.uk/id/local-authority/12UE,Huntingdonshire District Council,01/04/2010,53494,543.03,J Breheny Contractors Ltd,CR000314,Parks & Open Spaces,Sitework,359
http://statistics.data.gov.uk/id/local-authority/12UE,Huntingdonshire District Council,08/04/2010,53893,"1,633.25",Lattenbury Services,CR406847,Parks & Open Spaces,Subcontractors,777
http://statistics.data.gov.uk/id/local-authority/12UE,Huntingdonshire District Council,29/04/2010,55463,"6,104.60",Mhb Services,CR417269,Parks Equipment Capital,Sitework,359
http://statistics.data.gov.uk/id/local-authority/12UE,Huntingdonshire District Council,01/04/2010,54402,"1,309.91",Hygiene Solutions,CR477443,Pathfinder House Site,Cleaning Materials,443
http://statistics.data.gov.uk/id/local-authority/12UE,Huntingdonshire District Council,08/04/2010,54793,510.11,Maskearaid Ind Supplies,CR033423,Pathfinder House Site,Cleaning Materials,443
http://statistics.data.gov.uk/id/local-authority/12UE,Huntingdonshire District Council,22/04/2010,56405,"10,898.21",Swalec,CR407130,Pathfinder House Site,Electricity,420
http://statistics.data.gov.uk/id/local-authority/12UE,Huntingdonshire District Council,22/04/2010,56718,"3,491.22",Swalec,CR407130,Pathfinder House Site,Gas,421
http://statistics.data.gov.uk/id/local-authority/12UE,Huntingdonshire District Council,22/04/2010,56717,"3,793.89",Swalec,CR407130,Pathfinder House Site,Gas,421
http://statistics.data.gov.uk/id/local-authority/12UE,Huntingdonshire District Council,22/04/2010,56715,"4,111.86",Swalec,CR407130,Pathfinder House Site,Gas,421
http://statistics.data.gov.uk/id/local-authority/12UE,Huntingdonshire District Council,22/04/2010,55425,930.6,Ecocleen Services Limited,CR406985,Pathfinder House Site,Gen Building Mtce - Planned,304
http://statistics.data.gov.uk/id/local-authority/12UE,Huntingdonshire District Council,15/04/2010,55423,"2,452.50",Ecocleen Services Limited,CR406985,Pathfinder House Site,Gen Building Mtce - Planned,304
http://statistics.data.gov.uk/id/local-authority/12UE,Huntingdonshire District Council,01/04/2010,53279,"2,613.05",Kershaw Mechanical Services Ltd,CR480268,Pathfinder House Site,Gen Building Mtce - Planned,304
http://statistics.data.gov.uk/id/local-authority/12UE,Huntingdonshire District Council,29/04/2010,57042,712.05,Kone Lifts Ltd,CR000483,Pathfinder House Site,Gen Building Mtce - Planned,304
http://statistics.data.gov.uk/id/local-authority/12UE,Huntingdonshire District Council,08/04/2010,55156,822.5,Playfords Ltd,CR479055,Pathfinder House Site,Gen Building Mtce - Responsive,303
http://statistics.data.gov.uk/id/local-authority/12UE,Huntingdonshire District Council,22/04/2010,54795,"4,970.25",Playfords Ltd,CR479055,Pathfinder House Site,Gen Building Mtce - Responsive,303
http://statistics.data.gov.uk/id/local-authority/12UE,Huntingdonshire District Council,27/04/2010,57045,"1,041.10",Barker Storey Matthews,CR400788,Pathfinder House Site,Rent,410
http://statistics.data.gov.uk/id/local-authority/12UE,Huntingdonshire District Council,29/04/2010,55789,558.13,Dal-Rod (Camridgeshire),CR413675,Pavillions,Gen Building Mtce - Responsive,303
http://statistics.data.gov.uk/id/local-authority/12UE,Huntingdonshire District Council,22/04/2010,54933,"1,410.00",Dal-Rod (Camridgeshire),CR413675,Pavillions,Gen Building Mtce - Responsive,303
http://statistics.data.gov.uk/id/local-authority/12UE,Huntingdonshire District Council,22/04/2010,56547,857.57,Swalec,CR407130,Paxton Pits,Electricity,420
http://statistics.data.gov.uk/id/local-authority/12UE,Huntingdonshire District Council,08/04/2010,55376,"4,112.50",Jay Engineering Ltd,CR480365,Paxton Pits,Equipment Purchases,500
http://statistics.data.gov.uk/id/local-authority/12UE,Huntingdonshire District Council,15/04/2010,55100,791.95,Centrewire Ltd,CR401413,Paxton Pits,"Fences, Walls, Gates",356
http://statistics.data.gov.uk/id/local-authority/12UE,Huntingdonshire District Council,22/04/2010,56565,"5,419.65",Fen Farm Supplies,CR411436,Paxton Pits,Plants And Seeds,556
http://statistics.data.gov.uk/id/local-authority/12UE,Huntingdonshire District Council,29/04/2010,56564,799,Dal-Rod Uk Ltd,CR002782,Paxton Pits,Sewerage,433
http://statistics.data.gov.uk/id/local-authority/12UE,Huntingdonshire District Council,08/04/2010,53951,"1,410.00",Jsb Training And Devlopment,CR480209,People Performance&Partner Mu,Training - Other,136
http://statistics.data.gov.uk/id/local-authority/12UE,Huntingdonshire District Council,29/04/2010,55814,666.23,Bsi,CR40082,Planning M U'S,Corporate Subscriptions,754
http://statistics.data.gov.uk/id/local-authority/12UE,Huntingdonshire District Council,22/04/2010,56714,"1,157.38",Haymarket Business Publications Ltd,CR417029,Planning M U'S,Corporate Subscriptions,754
http://statistics.data.gov.uk/id/local-authority/12UE,Huntingdonshire District Council,22/04/2010,56111,96.22,Cintra Ltd,CR028441,Planning M U'S,Translation Services,766
http://statistics.data.gov.uk/id/local-authority/12UE,Huntingdonshire District Council,15/04/2010,54910,214.48,T N T Post Midlands Ltd,CR479965,Private Sector Housing,Postage,231
http://statistics.data.gov.uk/id/local-authority/12UE,Huntingdonshire District Council,08/04/2010,54506,"10,000.00",The Wildlife Trust,CR401987,Project Contributions,Consultants Other,711
http://statistics.data.gov.uk/id/local-authority/12UE,Huntingdonshire District Council,29/04/2010,55761,"1,233.75",D H Barford & Co,CR019223,Property Development And Mgt,Consultants Other,711
http://statistics.data.gov.uk/id/local-authority/12UE,Huntingdonshire District Council,29/04/2010,55760,"1,233.75",D H Barford & Co,CR019223,Property Development And Mgt,Consultants Other,711
http://statistics.data.gov.uk/id/local-authority/12UE,Huntingdonshire District Council,15/04/2010,54326,705,G Ferrara Ltd,CR478949,Property Development And Mgt,Equipment Purchases,500
http://statistics.data.gov.uk/id/local-authority/12UE,Huntingdonshire District Council,29/04/2010,55426,"1,116.25",Promain  Uk Ltd,CR082922,Property Development And Mgt,Gen Building Mtce - Planned,304
http://statistics.data.gov.uk/id/local-authority/12UE,Huntingdonshire District Council,08/04/2010,55419,881.25,Richard Herrmann Assoc Ltd,CR403316,Property Development And Mgt,Gen Building Mtce - Planned,304
http://statistics.data.gov.uk/id/local-authority/12UE,Huntingdonshire District Council,01/04/2010,53421,"1,269.00",B. S. Graves Electrical Ltd,CR000363,Property Development And Mgt,Gen Building Mtce - Responsive,303
http://statistics.data.gov.uk/id/local-authority/12UE,Huntingdonshire District Council,29/04/2010,57060,"5,875.00",Barclay Investments Limited,CR415267,Property Development And Mgt,Gen Building Mtce - Responsive,303
http://statistics.data.gov.uk/id/local-authority/12UE,Huntingdonshire District Council,08/04/2010,54291,"5,816.25",Promain  Uk Ltd,CR082922,Property Development And Mgt,Gen Building Mtce - Responsive,303
http://statistics.data.gov.uk/id/local-authority/12UE,Huntingdonshire District Council,15/04/2010,54305,"1,316.00",Warboys Services Ltd,CR000841,Property Development And Mgt,Gen Building Mtce - Responsive,303
http://statistics.data.gov.uk/id/local-authority/12UE,Huntingdonshire District Council,08/04/2010,54324,"1,512.23",Hunts Construction Ltd,CR404789,Property Development And Mgt,Sitework,359
http://statistics.data.gov.uk/id/local-authority/12UE,Huntingdonshire District Council,08/04/2010,53702,"3,119.54",Information Publications Ltd,CR415915,Public Accountability,Advertising/Promoting Services,255
http://statistics.data.gov.uk/id/local-authority/12UE,Huntingdonshire District Council,22/04/2010,54911,236.52,Royal Mail,CR027083,Public Accountability,Postage,231
http://statistics.data.gov.uk/id/local-authority/12UE,Huntingdonshire District Council,15/04/2010,54273,"4,602.71",Royal Mail,CR027083,Public Accountability,Postage,231
http://statistics.data.gov.uk/id/local-authority/12UE,Huntingdonshire District Council,22/04/2010,55733,17.95,Transcriptions Direct Ltd,CR417157,Public Accountability,Postage,231
http://statistics.data.gov.uk/id/local-authority/12UE,Huntingdonshire District Council,01/04/2010,53463,"2,933.58",Community Information Services Ltd,CR477930,Public Accountability,Printing (External),220
http://statistics.data.gov.uk/id/local-authority/12UE,Huntingdonshire District Council,08/04/2010,54266,"8,007.42",Warners Midlands Plc,CR416025,Public Accountability,Printing (External),220
http://statistics.data.gov.uk/id/local-authority/12UE,Huntingdonshire District Council,08/04/2010,53702,"3,125.50",Information Publications Ltd,CR415915,Public Accountability,Subcontractors,777
http://statistics.data.gov.uk/id/local-authority/12UE,Huntingdonshire District Council,22/04/2010,55733,596.9,Transcriptions Direct Ltd,CR417157,Public Accountability,Translation Services,766
http://statistics.data.gov.uk/id/local-authority/12UE,Huntingdonshire District Council,01/04/2010,54860,533.71,Swalec,CR407130,Public Conveniences,Electricity,420
http://statistics.data.gov.uk/id/local-authority/12UE,Huntingdonshire District Council,01/04/2010,54857,"1,060.42",Swalec,CR407130,Public Conveniences,Electricity,420
http://statistics.data.gov.uk/id/local-authority/12UE,Huntingdonshire District Council,29/04/2010,55060,"6,558.08",Beebys Limited,CR415822,Public Conveniences,Gen Building Mtce - Planned,304
http://statistics.data.gov.uk/id/local-authority/12UE,Huntingdonshire District Council,01/04/2010,54817,"1,388.50",Anglian Water,CR000071,Public Conveniences,Sewerage,433
http://statistics.data.gov.uk/id/local-authority/12UE,Huntingdonshire District Council,01/04/2010,54817,"1,239.55",Anglian Water,CR000071,Public Conveniences,Water,432
http://statistics.data.gov.uk/id/local-authority/12UE,Huntingdonshire District Council,01/04/2010,55081,-50,St Neots Window & Conservatories,CR032419,Renovation/Improvement Grants,Land Registry Fee,727
http://statistics.data.gov.uk/id/local-authority/12UE,Huntingdonshire District Council,09/04/2010,52686,681.5,Onedigital Ltd,CR478255,Revenue Services Mus,Equipment Purchases,500
http://statistics.data.gov.uk/id/local-authority/12UE,Huntingdonshire District Council,15/04/2010,54349,4,Sarfo Solicitors,CR415973,Revenue Services Mus,It Software Development,721
http://statistics.data.gov.uk/id/local-authority/12UE,Huntingdonshire District Council,15/04/2010,54349,589.05,Sarfo Solicitors,CR415973,Revenue Services Mus,Legal Fees And Consultancy,729
http://statistics.data.gov.uk/id/local-authority/12UE,Huntingdonshire District Council,29/04/2010,55822,"1,351.01",Royal Mail,CR027083,Revenue Services Mus,Postage,231
http://statistics.data.gov.uk/id/local-authority/12UE,Huntingdonshire District Council,22/04/2010,54911,"10,520.57",Royal Mail,CR027083,Revenue Services Mus,Postage,231
http://statistics.data.gov.uk/id/local-authority/12UE,Huntingdonshire District Council,22/04/2010,55825,"2,371.91",T N T Post Midlands Ltd,CR479965,Revenue Services Mus,Postage,231
http://statistics.data.gov.uk/id/local-authority/12UE,Huntingdonshire District Council,15/04/2010,54910,676.53,T N T Post Midlands Ltd,CR479965,Revenue Services Mus,Postage,231
http://statistics.data.gov.uk/id/local-authority/12UE,Huntingdonshire District Council,08/04/2010,54274,285.48,T N T Post Midlands Ltd,CR479965,Revenue Services Mus,Postage,231
http://statistics.data.gov.uk/id/local-authority/12UE,Huntingdonshire District Council,01/04/2010,53722,695.48,T N T Post Midlands Ltd,CR479965,Revenue Services Mus,Postage,231
http://statistics.data.gov.uk/id/local-authority/12UE,Huntingdonshire District Council,01/04/2010,53464,675.63,Arvato Bertelsmann,CR479878,Revenue Services Mus,Training - Other,136
http://statistics.data.gov.uk/id/local-authority/12UE,Huntingdonshire District Council,22/04/2010,55390,"4,570.75",Institute Of Public Finance Ltd,CR400472,Revenue Services Mus,Training - Other,136
http://statistics.data.gov.uk/id/local-authority/12UE,Huntingdonshire District Council,22/04/2010,54513,652.13,Irrv Services Limited,CR008937,Revenue Services Mus,Training - Other,136
http://statistics.data.gov.uk/id/local-authority/12UE,Huntingdonshire District Council,29/04/2010,53455,"350,000.00",Wherry Housing Association,CR477708,Social Housing Grant,Grants (Paid Out),800
http://statistics.data.gov.uk/id/local-authority/12UE,Huntingdonshire District Council,29/04/2010,55530,"1,057.50",Cedar Open Account Credit Control,CR032921,Software Capital,Consultants Other,711
http://statistics.data.gov.uk/id/local-authority/12UE,Huntingdonshire District Council,29/04/2010,491454,"2,240.00",Edrm Systems Ltd,CR416278,Software Capital,Consultants Other,711
http://statistics.data.gov.uk/id/local-authority/12UE,Huntingdonshire District Council,15/04/2010,54888,"4,263.84",Dell Computer Corporation,CR408320,Software Capital,P C'S And Accessories,201
http://statistics.data.gov.uk/id/local-authority/12UE,Huntingdonshire District Council,29/04/2010,55759,"1,586.25",Cedar Open Account Credit Control,CR032921,Software Capital,Software,206
http://statistics.data.gov.uk/id/local-authority/12UE,Huntingdonshire District Council,08/04/2010,54903,"1,586.25",Idox Information Services Ltd,CR403657,Software Capital,Software,206
http://statistics.data.gov.uk/id/local-authority/12UE,Huntingdonshire District Council,08/04/2010,51585,"14,570.00",Idox Information Services Ltd,CR403657,Software Capital,Software,206
http://statistics.data.gov.uk/id/local-authority/12UE,Huntingdonshire District Council,22/04/2010,55073,"2,499.44",Qubic Recruitment Solutions,CR416827,Street Cleaning,Hired Staff,100
http://statistics.data.gov.uk/id/local-authority/12UE,Huntingdonshire District Council,15/04/2010,54491,"2,486.17",Qubic Recruitment Solutions,CR416827,Street Cleaning,Hired Staff,100
http://statistics.data.gov.uk/id/local-authority/12UE,Huntingdonshire District Council,08/04/2010,53922,"2,335.96",Qubic Recruitment Solutions,CR416827,Street Cleaning,Hired Staff,100
http://statistics.data.gov.uk/id/local-authority/12UE,Huntingdonshire District Council,01/04/2010,53689,"2,805.85",Qubic Recruitment Solutions,CR416827,Street Cleaning,Hired Staff,100
http://statistics.data.gov.uk/id/local-authority/12UE,Huntingdonshire District Council,22/04/2010,54966,405.38,Nomix Enviro,CR002353,Street Cleaning,Training - Operational,131
http://statistics.data.gov.uk/id/local-authority/12UE,Huntingdonshire District Council,29/04/2010,55797,757.25,Johnston Engineering Ltd,CR029831,Street Cleaning,Vehicle Maintenance,619
http://statistics.data.gov.uk/id/local-authority/12UE,Huntingdonshire District Council,22/04/2010,55524,572.81,Johnston Engineering Ltd,CR029831,Street Cleaning,Vehicle Maintenance,619
http://statistics.data.gov.uk/id/local-authority/12UE,Huntingdonshire District Council,29/04/2010,55516,564.47,Johnston Engineering Ltd,CR029831,Street Cleaning,Vehicle Parts,625
http://statistics.data.gov.uk/id/local-authority/12UE,Huntingdonshire District Council,15/04/2010,54437,"5,029.75",Gelpack Excelsior Limited,CR002966,Trade Waste,Refuse Sacks,552
http://statistics.data.gov.uk/id/local-authority/12UE,Huntingdonshire District Council,01/04/2010,53370,"2,405.23",Cambridgeshire County Council,CR006678,Trade Waste,Waste Disposal,763
http://statistics.data.gov.uk/id/local-authority/12UE,Huntingdonshire District Council,29/04/2010,56515,"1,671.88",Archant Herts & Cambs,CR415764,Transportation Capital,Advertising - Statutory Notice,257
http://statistics.data.gov.uk/id/local-authority/12UE,Huntingdonshire District Council,15/04/2010,54325,564,G Ferrara Ltd,CR478949,Transportation Capital,Equipment Purchases,500
http://statistics.data.gov.uk/id/local-authority/12UE,Huntingdonshire District Council,22/04/2010,54830,"11,494.14",Urbis Lighting Ltd,CR000016,Transportation Capital,Equipment Purchases,500
http://statistics.data.gov.uk/id/local-authority/12UE,Huntingdonshire District Council,15/04/2010,54331,"3,525.00",G Ferrara Ltd,CR478949,Transportation Capital,Sitework,359
http://statistics.data.gov.uk/id/local-authority/12UE,Huntingdonshire District Council,15/04/2010,54330,"2,408.75",G Ferrara Ltd,CR478949,Transportation Capital,Sitework,359
http://statistics.data.gov.uk/id/local-authority/12UE,Huntingdonshire District Council,15/04/2010,54329,"4,694.13",G Ferrara Ltd,CR478949,Transportation Capital,Sitework,359
http://statistics.data.gov.uk/id/local-authority/12UE,Huntingdonshire District Council,15/04/2010,54328,"4,694.13",G Ferrara Ltd,CR478949,Transportation Capital,Sitework,359
http://statistics.data.gov.uk/id/local-authority/12UE,Huntingdonshire District Council,15/04/2010,54327,"5,816.25",G Ferrara Ltd,CR478949,Transportation Capital,Sitework,359
http://statistics.data.gov.uk/id/local-authority/12UE,Huntingdonshire District Council,01/04/2010,53847,785.49,Crowders Nurseries,CR411361,Trees,Trees/Shrubs,555
http://statistics.data.gov.uk/id/local-authority/12UE,Huntingdonshire District Council,29/04/2010,55505,793.13,Lattenbury Services,CR406847,Watercourses,Sitework,359
http://statistics.data.gov.uk/id/local-authority/12UE,Huntingdonshire District Council,15/04/2010,54375,"5,698.75",Lattenbury Services,CR406847,Watercourses,Sitework,359
http://statistics.data.gov.uk/id/local-authority/12UE,Huntingdonshire District Council,22/04/2010,55514,"17,260.75",Sdc Builders Ltd,CR131743,Watercourses,Sitework,359
